{"text_format":"1","workbook":"xlsx","n_sheets":14,"sheets":["Audiences Selection Sandbox","Sheet1","Audiences Summary","Comm Plan Summary","Comm Plan 1","Comm Plan 2","Comm Plan 3","Comm Plan 4","Comm Plan 5","Comm Plan 6","Comm Plan 7","Comm Plan 8","Comm Plan 9","Comm Plan 10"],"not_rendered":{"charts":0,"images":0,"macros":1,"external_links":0,"defined_names":0,"comments":0,"pivot_tables":0},"unopened":[],"bounds":{"document_bytes":16777216,"sheet_cells":100000,"rows_first":2000,"rows_last":500,"rows_between":2000,"halvings":0,"cell_chars":16384,"cell_head_chars":4096},"cells_cut":0,"cells_raw":0,"read":"whole","date_system":"1900"}

{"sheet":"Audiences Selection Sandbox","index":0,"n_rows":42,"n_cols":16,"rows_kept":42,"cut":false,"hidden":false,"merged":[[7,2,7,6],[7,7,7,11],[8,2,8,6],[8,7,8,11]]}
["Conduct these steps in order:"]
["Step 1:  Indicate if you want to include a National Student Access group (Row 9)"]
["Step 2:  Indicate \"yes\" if you want all of a score band or all of a market (Row 11 or Column M)"]
["Step 3:  Put an additional 'x' in any additional Audiences you want to include (case sensitive), or delete 'x's you don't want (IMPORTANT: do this only after completing Step 2)",null,null,null,null,null,null,null,null,null,null,null,null,null,null,"Number of Audiences Required:"]
["Step 4: Confirm that the \"Number of Audiences Required\" to the right is less than or equal to the number of Audiences in your current Access Plan",null,null,null,null,null,null,null,null,null,null,null,null,null,null,{"$f":"COUNTIF(C14:L42,\"x\")+P9+P10","v":0}]
[]
[]
[null,null,"Classes of 2025 and 2026 (11th and 12th grade)",null,null,null,null,"Classes of 2026 and 2027 (9th and 10th grade)"]
[null,"Add a National Student Access Group?",null,null,null,null,null,null,null,null,null,null,null,null,null,{"$f":"IF(C9=\"yes\",15,\"0\")","v":"0"}]
[null,null,null,null,null,null,null,null,null,null,null,null,null,null,null,{"$f":"IF(H9=\"yes\",15,\"0\")","v":"0"}]
["All Students in this Column? --->"]
[null,null,"Band 1","Band 2","Band 3","Band 4","Band 5","Band 1","Band 2","Band 3","Band 4","Band 5","All Students in this Row?"]
[null,null,"<910","910-1090","1100-1210","1220-1350","1360+","<910","910-1090","1100-1210","1220-1350","1360+"]
[1,"ME, NH, VT, CT, and MA (excluding Boston)",{"$f":"IF(OR(C$11=\"yes\",$M14=\"yes\"),\"x\",\" \")","v":" "}," "," "," "," "," "," "," "," "," "]
[2,"RI and Greater Boston"," "," "," "," "," "," "," "," "," "," "]
[3,"NY State (excluding NYC and Long Island)"]
[4,"New York City (excluding Long Island)"]
[5,"Long Island"]
[6,"NJ (North)"," "," "," "," "," "," "," "," "," "," "]
[7,"NJ (South)"," "," "," "," "," "," "," "," "," "," "]
[8,"DE and Greater Philadelphia"," "," "," "," "," "," "," "," "," "," "]
[9,"PA (excluding Philadelphia)"," "," "," "," "," "," "," "," "," "," "]
[10,"MD"," "," "," "," "," "," "," "," "," "," "]
[11,"DC and Northern VA"," "," "," "," "," "," "," "," "," "," "]
[12,"KY, TN, WV, and VA (excluding Northern VA)"," "," "," "," "," "," "," "," "," "," "]
[13,"NC and SC"," "," "," "," "," "," "," "," "," "," "]
[14,"North GA (including Atlanta)"," "," "," "," "," "," "," "," "," "," "]
[15,"LA, MS, AL, GA (South), FL (North)"," "," "," "," "," "," "," "," "," "," "]
[16,"Southern FL"," "," "," "," "," "," "," "," "," "," "]
[17,"OH"," "," "," "," "," "," "," "," "," "," "]
[18,"MI and WI",{"$f":"IF(OR(C$11=\"yes\",$M31=\"yes\"),\"x\",\" \")","v":" "}," "," "," "," "," "," "," "," "," "]
[19,"Greater Chicago"," "," "," "," "," "," "," "," "," "," "]
[20,"IL and IN (excluding Chicago)"," "," "," "," "," "," "," "," "," "," "]
[21,"ND, SD, MN, IA, NE, KS, MO, AR, and OK"," "," "," "," "," "," "," "," "," "," "]
[22,"TX (excluding Dallas-Ft. Worth and Houston)"," "," "," "," "," "," "," "," "," "," "]
[23,"Greater Dallas-Ft. Worth"," "," "," "," "," "," "," "," "," "," "]
[24,"Greater Houston"," "," "," "," "," "," "," "," "," "," "]
[25,"AZ, NM, CO, UT"," "," "," "," "," "," "," "," "," "," "]
[26,"HI and Southern CA (excluding Los Angeles)"," "," "," "," "," "," "," "," "," "," "]
[27,"Greater Los Angeles"," "," "," "," "," "," "," "," "," "," "]
[28,"NV and Northern CA"," "," "," "," "," "," "," "," "," "," "]
[29,"WA, OR, ID, MT, WY, and AK"," "," "," "," "," "," "," "," "," "," "]

{"sheet":"Sheet1","index":1,"n_rows":3,"n_cols":2,"rows_kept":3,"cut":false,"hidden":true,"merged":[]}
[]
[null,"yes"]
[null,"no"]

{"sheet":"Audiences Summary","index":2,"n_rows":65,"n_cols":12,"rows_kept":65,"cut":false,"hidden":false,"merged":[]}
["Your Audience Selections"]
[]
["Graduating Classes of 2025 and 2026",null,null,null,null,null,null,"Graduating Classes of 2027 and 2028"]
["National Student Acccess Group?",{"$f":"IF('Audiences Selection Sandbox'!C9=\"yes\",\"yes\", \"\")","v":""},null,null,null,null,null,{"$f":"IF('Audiences Selection Sandbox'!H9=\"yes\",\"yes\", \"\")","v":""}]
[]
["Geography","Band 1","Band 2","Band 3","Band 4","Band 5",null,"Band 1","Band 2","Band 3","Band 4","Band 5"]
[{"$f":"IF(OR('Audiences Selection Sandbox'!C14=\"x\",'Audiences Selection Sandbox'!D14=\"x\",'Audiences Selection Sandbox'!E14=\"x\",'Audiences Selection Sandbox'!F14=\"x\",'Audiences Selection Sandbox'!G14=\"x\",'Audiences Selection Sandbox'!H14=\"x\",'Audiences Selection Sandbox'!I14=\"x\",'Audiences Selection Sandbox'!J14=\"x\",'Audiences Selection Sandbox'!K14=\"x\",'Audiences Selection Sandbox'!L14=\"x\"),'Audiences Selection Sandbox'!B14, \"\")","v":""},{"$f":"IF('Audiences Selection Sandbox'!C14=\"x\",'Audiences Selection Sandbox'!$C$13, \"\")","v":""},{"$f":"IF('Audiences Selection Sandbox'!D14=\"x\",'Audiences Selection Sandbox'!$D$13, \"\")","v":""},{"$f":"IF('Audiences Selection Sandbox'!E14=\"x\",'Audiences Selection Sandbox'!$E$13, \"\")","v":""},{"$f":"IF('Audiences Selection Sandbox'!F14=\"x\",'Audiences Selection Sandbox'!$F$13, \"\")","v":""},{"$f":"IF('Audiences Selection Sandbox'!G14=\"x\",'Audiences Selection Sandbox'!$G$13, \"\")","v":""},null,{"$f":"IF('Audiences Selection Sandbox'!H14=\"x\",'Audiences Selection Sandbox'!$H$13, \"\")","v":""},{"$f":"IF('Audiences Selection Sandbox'!I14=\"x\",'Audiences Selection Sandbox'!$I$13, \"\")","v":""},{"$f":"IF('Audiences Selection Sandbox'!J14=\"x\",'Audiences Selection Sandbox'!$J$13, \"\")","v":""},{"$f":"IF('Audiences Selection Sandbox'!K14=\"x\",'Audiences Selection Sandbox'!$K$13, \"\")","v":""},{"$f":"IF('Audiences Selection Sandbox'!L14=\"x\",'Audiences Selection Sandbox'!$L$13, \"\")","v":""}]
[{"$f":"IF(OR('Audiences Selection Sandbox'!C15=\"x\",'Audiences Selection Sandbox'!D15=\"x\",'Audiences Selection Sandbox'!E15=\"x\",'Audiences Selection Sandbox'!F15=\"x\",'Audiences Selection Sandbox'!G15=\"x\",'Audiences Selection Sandbox'!H15=\"x\",'Audiences Selection Sandbox'!I15=\"x\",'Audiences Selection Sandbox'!J15=\"x\",'Audiences Selection Sandbox'!K15=\"x\",'Audiences Selection Sandbox'!L15=\"x\"),'Audiences Selection Sandbox'!B15, \"\")","v":""},{"$f":"IF('Audiences Selection Sandbox'!C15=\"x\",'Audiences Selection Sandbox'!$C$13, \"\")","v":""},{"$f":"IF('Audiences Selection Sandbox'!D15=\"x\",'Audiences Selection Sandbox'!$D$13, \"\")","v":""},{"$f":"IF('Audiences Selection Sandbox'!E15=\"x\",'Audiences Selection Sandbox'!$E$13, \"\")","v":""},{"$f":"IF('Audiences Selection Sandbox'!F15=\"x\",'Audiences Selection Sandbox'!$F$13, \"\")","v":""},{"$f":"IF('Audiences Selection Sandbox'!G15=\"x\",'Audiences Selection Sandbox'!$G$13, \"\")","v":""},null,{"$f":"IF('Audiences Selection Sandbox'!H15=\"x\",'Audiences Selection Sandbox'!$H$13, \"\")","v":""},{"$f":"IF('Audiences Selection Sandbox'!I15=\"x\",'Audiences Selection Sandbox'!$I$13, \"\")","v":""},{"$f":"IF('Audiences Selection Sandbox'!J15=\"x\",'Audiences Selection Sandbox'!$J$13, \"\")","v":""},{"$f":"IF('Audiences Selection Sandbox'!K15=\"x\",'Audiences Selection Sandbox'!$K$13, \"\")","v":""},{"$f":"IF('Audiences Selection Sandbox'!L15=\"x\",'Audiences Selection Sandbox'!$L$13, \"\")","v":""}]
[{"$f":"IF(OR('Audiences Selection Sandbox'!C16=\"x\",'Audiences Selection Sandbox'!D16=\"x\",'Audiences Selection Sandbox'!E16=\"x\",'Audiences Selection Sandbox'!F16=\"x\",'Audiences Selection Sandbox'!G16=\"x\",'Audiences Selection Sandbox'!H16=\"x\",'Audiences Selection Sandbox'!I16=\"x\",'Audiences Selection Sandbox'!J16=\"x\",'Audiences Selection Sandbox'!K16=\"x\",'Audiences Selection Sandbox'!L16=\"x\"),'Audiences Selection Sandbox'!B16, \"\")","v":""},{"$f":"IF('Audiences Selection Sandbox'!C16=\"x\",'Audiences Selection Sandbox'!$C$13, \"\")","v":""},{"$f":"IF('Audiences Selection Sandbox'!D16=\"x\",'Audiences Selection Sandbox'!$D$13, \"\")","v":""},{"$f":"IF('Audiences Selection Sandbox'!E16=\"x\",'Audiences Selection Sandbox'!$E$13, \"\")","v":""},{"$f":"IF('Audiences Selection Sandbox'!F16=\"x\",'Audiences Selection Sandbox'!$F$13, \"\")","v":""},{"$f":"IF('Audiences Selection Sandbox'!G16=\"x\",'Audiences Selection Sandbox'!$G$13, \"\")","v":""},null,{"$f":"IF('Audiences Selection Sandbox'!H16=\"x\",'Audiences Selection Sandbox'!$H$13, \"\")","v":""},{"$f":"IF('Audiences Selection Sandbox'!I16=\"x\",'Audiences Selection Sandbox'!$I$13, \"\")","v":""},{"$f":"IF('Audiences Selection Sandbox'!J16=\"x\",'Audiences Selection Sandbox'!$J$13, \"\")","v":""},{"$f":"IF('Audiences Selection Sandbox'!K16=\"x\",'Audiences Selection Sandbox'!$K$13, \"\")","v":""},{"$f":"IF('Audiences Selection Sandbox'!L16=\"x\",'Audiences Selection Sandbox'!$L$13, \"\")","v":""}]
[{"$f":"IF(OR('Audiences Selection Sandbox'!C17=\"x\",'Audiences Selection Sandbox'!D17=\"x\",'Audiences Selection Sandbox'!E17=\"x\",'Audiences Selection Sandbox'!F17=\"x\",'Audiences Selection Sandbox'!G17=\"x\",'Audiences Selection Sandbox'!H17=\"x\",'Audiences Selection Sandbox'!I17=\"x\",'Audiences Selection Sandbox'!J17=\"x\",'Audiences Selection Sandbox'!K17=\"x\",'Audiences Selection Sandbox'!L17=\"x\"),'Audiences Selection Sandbox'!B17, \"\")","v":""},{"$f":"IF('Audiences Selection Sandbox'!C17=\"x\",'Audiences Selection Sandbox'!$C$13, \"\")","v":""},{"$f":"IF('Audiences Selection Sandbox'!D17=\"x\",'Audiences Selection Sandbox'!$D$13, \"\")","v":""},{"$f":"IF('Audiences Selection Sandbox'!E17=\"x\",'Audiences Selection Sandbox'!$E$13, \"\")","v":""},{"$f":"IF('Audiences Selection Sandbox'!F17=\"x\",'Audiences Selection Sandbox'!$F$13, \"\")","v":""},{"$f":"IF('Audiences Selection Sandbox'!G17=\"x\",'Audiences Selection Sandbox'!$G$13, \"\")","v":""},null,{"$f":"IF('Audiences Selection Sandbox'!H17=\"x\",'Audiences Selection Sandbox'!$H$13, \"\")","v":""},{"$f":"IF('Audiences Selection Sandbox'!I17=\"x\",'Audiences Selection Sandbox'!$I$13, \"\")","v":""},{"$f":"IF('Audiences Selection Sandbox'!J17=\"x\",'Audiences Selection Sandbox'!$J$13, \"\")","v":""},{"$f":"IF('Audiences Selection Sandbox'!K17=\"x\",'Audiences Selection Sandbox'!$K$13, \"\")","v":""},{"$f":"IF('Audiences Selection Sandbox'!L17=\"x\",'Audiences Selection Sandbox'!$L$13, \"\")","v":""}]
[{"$f":"IF(OR('Audiences Selection Sandbox'!C18=\"x\",'Audiences Selection Sandbox'!D18=\"x\",'Audiences Selection Sandbox'!E18=\"x\",'Audiences Selection Sandbox'!F18=\"x\",'Audiences Selection Sandbox'!G18=\"x\",'Audiences Selection Sandbox'!H18=\"x\",'Audiences Selection Sandbox'!I18=\"x\",'Audiences Selection Sandbox'!J18=\"x\",'Audiences Selection Sandbox'!K18=\"x\",'Audiences Selection Sandbox'!L18=\"x\"),'Audiences Selection Sandbox'!B18, \"\")","v":""},{"$f":"IF('Audiences Selection Sandbox'!C18=\"x\",'Audiences Selection Sandbox'!$C$13, \"\")","v":""},{"$f":"IF('Audiences Selection Sandbox'!D18=\"x\",'Audiences Selection Sandbox'!$D$13, \"\")","v":""},{"$f":"IF('Audiences Selection Sandbox'!E18=\"x\",'Audiences Selection Sandbox'!$E$13, \"\")","v":""},{"$f":"IF('Audiences Selection Sandbox'!F18=\"x\",'Audiences Selection Sandbox'!$F$13, \"\")","v":""},{"$f":"IF('Audiences Selection Sandbox'!G18=\"x\",'Audiences Selection Sandbox'!$G$13, \"\")","v":""},null,{"$f":"IF('Audiences Selection Sandbox'!H18=\"x\",'Audiences Selection Sandbox'!$H$13, \"\")","v":""},{"$f":"IF('Audiences Selection Sandbox'!I18=\"x\",'Audiences Selection Sandbox'!$I$13, \"\")","v":""},{"$f":"IF('Audiences Selection Sandbox'!J18=\"x\",'Audiences Selection Sandbox'!$J$13, \"\")","v":""},{"$f":"IF('Audiences Selection Sandbox'!K18=\"x\",'Audiences Selection Sandbox'!$K$13, \"\")","v":""},{"$f":"IF('Audiences Selection Sandbox'!L18=\"x\",'Audiences Selection Sandbox'!$L$13, \"\")","v":""}]
[{"$f":"IF(OR('Audiences Selection Sandbox'!C19=\"x\",'Audiences Selection Sandbox'!D19=\"x\",'Audiences Selection Sandbox'!E19=\"x\",'Audiences Selection Sandbox'!F19=\"x\",'Audiences Selection Sandbox'!G19=\"x\",'Audiences Selection Sandbox'!H19=\"x\",'Audiences Selection Sandbox'!I19=\"x\",'Audiences Selection Sandbox'!J19=\"x\",'Audiences Selection Sandbox'!K19=\"x\",'Audiences Selection Sandbox'!L19=\"x\"),'Audiences Selection Sandbox'!B19, \"\")","v":""},{"$f":"IF('Audiences Selection Sandbox'!C19=\"x\",'Audiences Selection Sandbox'!$C$13, \"\")","v":""},{"$f":"IF('Audiences Selection Sandbox'!D19=\"x\",'Audiences Selection Sandbox'!$D$13, \"\")","v":""},{"$f":"IF('Audiences Selection Sandbox'!E19=\"x\",'Audiences Selection Sandbox'!$E$13, \"\")","v":""},{"$f":"IF('Audiences Selection Sandbox'!F19=\"x\",'Audiences Selection Sandbox'!$F$13, \"\")","v":""},{"$f":"IF('Audiences Selection Sandbox'!G19=\"x\",'Audiences Selection Sandbox'!$G$13, \"\")","v":""},null,{"$f":"IF('Audiences Selection Sandbox'!H19=\"x\",'Audiences Selection Sandbox'!$H$13, \"\")","v":""},{"$f":"IF('Audiences Selection Sandbox'!I19=\"x\",'Audiences Selection Sandbox'!$I$13, \"\")","v":""},{"$f":"IF('Audiences Selection Sandbox'!J19=\"x\",'Audiences Selection Sandbox'!$J$13, \"\")","v":""},{"$f":"IF('Audiences Selection Sandbox'!K19=\"x\",'Audiences Selection Sandbox'!$K$13, \"\")","v":""},{"$f":"IF('Audiences Selection Sandbox'!L19=\"x\",'Audiences Selection Sandbox'!$L$13, \"\")","v":""}]
[{"$f":"IF(OR('Audiences Selection Sandbox'!C20=\"x\",'Audiences Selection Sandbox'!D20=\"x\",'Audiences Selection Sandbox'!E20=\"x\",'Audiences Selection Sandbox'!F20=\"x\",'Audiences Selection Sandbox'!G20=\"x\",'Audiences Selection Sandbox'!H20=\"x\",'Audiences Selection Sandbox'!I20=\"x\",'Audiences Selection Sandbox'!J20=\"x\",'Audiences Selection Sandbox'!K20=\"x\",'Audiences Selection Sandbox'!L20=\"x\"),'Audiences Selection Sandbox'!B20, \"\")","v":""},{"$f":"IF('Audiences Selection Sandbox'!C20=\"x\",'Audiences Selection Sandbox'!$C$13, \"\")","v":""},{"$f":"IF('Audiences Selection Sandbox'!D20=\"x\",'Audiences Selection Sandbox'!$D$13, \"\")","v":""},{"$f":"IF('Audiences Selection Sandbox'!E20=\"x\",'Audiences Selection Sandbox'!$E$13, \"\")","v":""},{"$f":"IF('Audiences Selection Sandbox'!F20=\"x\",'Audiences Selection Sandbox'!$F$13, \"\")","v":""},{"$f":"IF('Audiences Selection Sandbox'!G20=\"x\",'Audiences Selection Sandbox'!$G$13, \"\")","v":""},null,{"$f":"IF('Audiences Selection Sandbox'!H20=\"x\",'Audiences Selection Sandbox'!$H$13, \"\")","v":""},{"$f":"IF('Audiences Selection Sandbox'!I20=\"x\",'Audiences Selection Sandbox'!$I$13, \"\")","v":""},{"$f":"IF('Audiences Selection Sandbox'!J20=\"x\",'Audiences Selection Sandbox'!$J$13, \"\")","v":""},{"$f":"IF('Audiences Selection Sandbox'!K20=\"x\",'Audiences Selection Sandbox'!$K$13, \"\")","v":""},{"$f":"IF('Audiences Selection Sandbox'!L20=\"x\",'Audiences Selection Sandbox'!$L$13, \"\")","v":""}]
[{"$f":"IF(OR('Audiences Selection Sandbox'!C21=\"x\",'Audiences Selection Sandbox'!D21=\"x\",'Audiences Selection Sandbox'!E21=\"x\",'Audiences Selection Sandbox'!F21=\"x\",'Audiences Selection Sandbox'!G21=\"x\",'Audiences Selection Sandbox'!H21=\"x\",'Audiences Selection Sandbox'!I21=\"x\",'Audiences Selection Sandbox'!J21=\"x\",'Audiences Selection Sandbox'!K21=\"x\",'Audiences Selection Sandbox'!L21=\"x\"),'Audiences Selection Sandbox'!B21, \"\")","v":""},{"$f":"IF('Audiences Selection Sandbox'!C21=\"x\",'Audiences Selection Sandbox'!$C$13, \"\")","v":""},{"$f":"IF('Audiences Selection Sandbox'!D21=\"x\",'Audiences Selection Sandbox'!$D$13, \"\")","v":""},{"$f":"IF('Audiences Selection Sandbox'!E21=\"x\",'Audiences Selection Sandbox'!$E$13, \"\")","v":""},{"$f":"IF('Audiences Selection Sandbox'!F21=\"x\",'Audiences Selection Sandbox'!$F$13, \"\")","v":""},{"$f":"IF('Audiences Selection Sandbox'!G21=\"x\",'Audiences Selection Sandbox'!$G$13, \"\")","v":""},null,{"$f":"IF('Audiences Selection Sandbox'!H21=\"x\",'Audiences Selection Sandbox'!$H$13, \"\")","v":""},{"$f":"IF('Audiences Selection Sandbox'!I21=\"x\",'Audiences Selection Sandbox'!$I$13, \"\")","v":""},{"$f":"IF('Audiences Selection Sandbox'!J21=\"x\",'Audiences Selection Sandbox'!$J$13, \"\")","v":""},{"$f":"IF('Audiences Selection Sandbox'!K21=\"x\",'Audiences Selection Sandbox'!$K$13, \"\")","v":""},{"$f":"IF('Audiences Selection Sandbox'!L21=\"x\",'Audiences Selection Sandbox'!$L$13, \"\")","v":""}]
[{"$f":"IF(OR('Audiences Selection Sandbox'!C22=\"x\",'Audiences Selection Sandbox'!D22=\"x\",'Audiences Selection Sandbox'!E22=\"x\",'Audiences Selection Sandbox'!F22=\"x\",'Audiences Selection Sandbox'!G22=\"x\",'Audiences Selection Sandbox'!H22=\"x\",'Audiences Selection Sandbox'!I22=\"x\",'Audiences Selection Sandbox'!J22=\"x\",'Audiences Selection Sandbox'!K22=\"x\",'Audiences Selection Sandbox'!L22=\"x\"),'Audiences Selection Sandbox'!B22, \"\")","v":""},{"$f":"IF('Audiences Selection Sandbox'!C22=\"x\",'Audiences Selection Sandbox'!$C$13, \"\")","v":""},{"$f":"IF('Audiences Selection Sandbox'!D22=\"x\",'Audiences Selection Sandbox'!$D$13, \"\")","v":""},{"$f":"IF('Audiences Selection Sandbox'!E22=\"x\",'Audiences Selection Sandbox'!$E$13, \"\")","v":""},{"$f":"IF('Audiences Selection Sandbox'!F22=\"x\",'Audiences Selection Sandbox'!$F$13, \"\")","v":""},{"$f":"IF('Audiences Selection Sandbox'!G22=\"x\",'Audiences Selection Sandbox'!$G$13, \"\")","v":""},null,{"$f":"IF('Audiences Selection Sandbox'!H22=\"x\",'Audiences Selection Sandbox'!$H$13, \"\")","v":""},{"$f":"IF('Audiences Selection Sandbox'!I22=\"x\",'Audiences Selection Sandbox'!$I$13, \"\")","v":""},{"$f":"IF('Audiences Selection Sandbox'!J22=\"x\",'Audiences Selection Sandbox'!$J$13, \"\")","v":""},{"$f":"IF('Audiences Selection Sandbox'!K22=\"x\",'Audiences Selection Sandbox'!$K$13, \"\")","v":""},{"$f":"IF('Audiences Selection Sandbox'!L22=\"x\",'Audiences Selection Sandbox'!$L$13, \"\")","v":""}]
[{"$f":"IF(OR('Audiences Selection Sandbox'!C23=\"x\",'Audiences Selection Sandbox'!D23=\"x\",'Audiences Selection Sandbox'!E23=\"x\",'Audiences Selection Sandbox'!F23=\"x\",'Audiences Selection Sandbox'!G23=\"x\",'Audiences Selection Sandbox'!H23=\"x\",'Audiences Selection Sandbox'!I23=\"x\",'Audiences Selection Sandbox'!J23=\"x\",'Audiences Selection Sandbox'!K23=\"x\",'Audiences Selection Sandbox'!L23=\"x\"),'Audiences Selection Sandbox'!B23, \"\")","v":""},{"$f":"IF('Audiences Selection Sandbox'!C23=\"x\",'Audiences Selection Sandbox'!$C$13, \"\")","v":""},{"$f":"IF('Audiences Selection Sandbox'!D23=\"x\",'Audiences Selection Sandbox'!$D$13, \"\")","v":""},{"$f":"IF('Audiences Selection Sandbox'!E23=\"x\",'Audiences Selection Sandbox'!$E$13, \"\")","v":""},{"$f":"IF('Audiences Selection Sandbox'!F23=\"x\",'Audiences Selection Sandbox'!$F$13, \"\")","v":""},{"$f":"IF('Audiences Selection Sandbox'!G23=\"x\",'Audiences Selection Sandbox'!$G$13, \"\")","v":""},null,{"$f":"IF('Audiences Selection Sandbox'!H23=\"x\",'Audiences Selection Sandbox'!$H$13, \"\")","v":""},{"$f":"IF('Audiences Selection Sandbox'!I23=\"x\",'Audiences Selection Sandbox'!$I$13, \"\")","v":""},{"$f":"IF('Audiences Selection Sandbox'!J23=\"x\",'Audiences Selection Sandbox'!$J$13, \"\")","v":""},{"$f":"IF('Audiences Selection Sandbox'!K23=\"x\",'Audiences Selection Sandbox'!$K$13, \"\")","v":""},{"$f":"IF('Audiences Selection Sandbox'!L23=\"x\",'Audiences Selection Sandbox'!$L$13, \"\")","v":""}]
[{"$f":"IF(OR('Audiences Selection Sandbox'!C24=\"x\",'Audiences Selection Sandbox'!D24=\"x\",'Audiences Selection Sandbox'!E24=\"x\",'Audiences Selection Sandbox'!F24=\"x\",'Audiences Selection Sandbox'!G24=\"x\",'Audiences Selection Sandbox'!H24=\"x\",'Audiences Selection Sandbox'!I24=\"x\",'Audiences Selection Sandbox'!J24=\"x\",'Audiences Selection Sandbox'!K24=\"x\",'Audiences Selection Sandbox'!L24=\"x\"),'Audiences Selection Sandbox'!B24, \"\")","v":""},{"$f":"IF('Audiences Selection Sandbox'!C24=\"x\",'Audiences Selection Sandbox'!$C$13, \"\")","v":""},{"$f":"IF('Audiences Selection Sandbox'!D24=\"x\",'Audiences Selection Sandbox'!$D$13, \"\")","v":""},{"$f":"IF('Audiences Selection Sandbox'!E24=\"x\",'Audiences Selection Sandbox'!$E$13, \"\")","v":""},{"$f":"IF('Audiences Selection Sandbox'!F24=\"x\",'Audiences Selection Sandbox'!$F$13, \"\")","v":""},{"$f":"IF('Audiences Selection Sandbox'!G24=\"x\",'Audiences Selection Sandbox'!$G$13, \"\")","v":""},null,{"$f":"IF('Audiences Selection Sandbox'!H24=\"x\",'Audiences Selection Sandbox'!$H$13, \"\")","v":""},{"$f":"IF('Audiences Selection Sandbox'!I24=\"x\",'Audiences Selection Sandbox'!$I$13, \"\")","v":""},{"$f":"IF('Audiences Selection Sandbox'!J24=\"x\",'Audiences Selection Sandbox'!$J$13, \"\")","v":""},{"$f":"IF('Audiences Selection Sandbox'!K24=\"x\",'Audiences Selection Sandbox'!$K$13, \"\")","v":""},{"$f":"IF('Audiences Selection Sandbox'!L24=\"x\",'Audiences Selection Sandbox'!$L$13, \"\")","v":""}]
[{"$f":"IF(OR('Audiences Selection Sandbox'!C25=\"x\",'Audiences Selection Sandbox'!D25=\"x\",'Audiences Selection Sandbox'!E25=\"x\",'Audiences Selection Sandbox'!F25=\"x\",'Audiences Selection Sandbox'!G25=\"x\",'Audiences Selection Sandbox'!H25=\"x\",'Audiences Selection Sandbox'!I25=\"x\",'Audiences Selection Sandbox'!J25=\"x\",'Audiences Selection Sandbox'!K25=\"x\",'Audiences Selection Sandbox'!L25=\"x\"),'Audiences Selection Sandbox'!B25, \"\")","v":""},{"$f":"IF('Audiences Selection Sandbox'!C25=\"x\",'Audiences Selection Sandbox'!$C$13, \"\")","v":""},{"$f":"IF('Audiences Selection Sandbox'!D25=\"x\",'Audiences Selection Sandbox'!$D$13, \"\")","v":""},{"$f":"IF('Audiences Selection Sandbox'!E25=\"x\",'Audiences Selection Sandbox'!$E$13, \"\")","v":""},{"$f":"IF('Audiences Selection Sandbox'!F25=\"x\",'Audiences Selection Sandbox'!$F$13, \"\")","v":""},{"$f":"IF('Audiences Selection Sandbox'!G25=\"x\",'Audiences Selection Sandbox'!$G$13, \"\")","v":""},null,{"$f":"IF('Audiences Selection Sandbox'!H25=\"x\",'Audiences Selection Sandbox'!$H$13, \"\")","v":""},{"$f":"IF('Audiences Selection Sandbox'!I25=\"x\",'Audiences Selection Sandbox'!$I$13, \"\")","v":""},{"$f":"IF('Audiences Selection Sandbox'!J25=\"x\",'Audiences Selection Sandbox'!$J$13, \"\")","v":""},{"$f":"IF('Audiences Selection Sandbox'!K25=\"x\",'Audiences Selection Sandbox'!$K$13, \"\")","v":""},{"$f":"IF('Audiences Selection Sandbox'!L25=\"x\",'Audiences Selection Sandbox'!$L$13, \"\")","v":""}]
[{"$f":"IF(OR('Audiences Selection Sandbox'!C26=\"x\",'Audiences Selection Sandbox'!D26=\"x\",'Audiences Selection Sandbox'!E26=\"x\",'Audiences Selection Sandbox'!F26=\"x\",'Audiences Selection Sandbox'!G26=\"x\",'Audiences Selection Sandbox'!H26=\"x\",'Audiences Selection Sandbox'!I26=\"x\",'Audiences Selection Sandbox'!J26=\"x\",'Audiences Selection Sandbox'!K26=\"x\",'Audiences Selection Sandbox'!L26=\"x\"),'Audiences Selection Sandbox'!B26, \"\")","v":""},{"$f":"IF('Audiences Selection Sandbox'!C26=\"x\",'Audiences Selection Sandbox'!$C$13, \"\")","v":""},{"$f":"IF('Audiences Selection Sandbox'!D26=\"x\",'Audiences Selection Sandbox'!$D$13, \"\")","v":""},{"$f":"IF('Audiences Selection Sandbox'!E26=\"x\",'Audiences Selection Sandbox'!$E$13, \"\")","v":""},{"$f":"IF('Audiences Selection Sandbox'!F26=\"x\",'Audiences Selection Sandbox'!$F$13, \"\")","v":""},{"$f":"IF('Audiences Selection Sandbox'!G26=\"x\",'Audiences Selection Sandbox'!$G$13, \"\")","v":""},null,{"$f":"IF('Audiences Selection Sandbox'!H26=\"x\",'Audiences Selection Sandbox'!$H$13, \"\")","v":""},{"$f":"IF('Audiences Selection Sandbox'!I26=\"x\",'Audiences Selection Sandbox'!$I$13, \"\")","v":""},{"$f":"IF('Audiences Selection Sandbox'!J26=\"x\",'Audiences Selection Sandbox'!$J$13, \"\")","v":""},{"$f":"IF('Audiences Selection Sandbox'!K26=\"x\",'Audiences Selection Sandbox'!$K$13, \"\")","v":""},{"$f":"IF('Audiences Selection Sandbox'!L26=\"x\",'Audiences Selection Sandbox'!$L$13, \"\")","v":""}]
[{"$f":"IF(OR('Audiences Selection Sandbox'!C27=\"x\",'Audiences Selection Sandbox'!D27=\"x\",'Audiences Selection Sandbox'!E27=\"x\",'Audiences Selection Sandbox'!F27=\"x\",'Audiences Selection Sandbox'!G27=\"x\",'Audiences Selection Sandbox'!H27=\"x\",'Audiences Selection Sandbox'!I27=\"x\",'Audiences Selection Sandbox'!J27=\"x\",'Audiences Selection Sandbox'!K27=\"x\",'Audiences Selection Sandbox'!L27=\"x\"),'Audiences Selection Sandbox'!B27, \"\")","v":""},{"$f":"IF('Audiences Selection Sandbox'!C27=\"x\",'Audiences Selection Sandbox'!$C$13, \"\")","v":""},{"$f":"IF('Audiences Selection Sandbox'!D27=\"x\",'Audiences Selection Sandbox'!$D$13, \"\")","v":""},{"$f":"IF('Audiences Selection Sandbox'!E27=\"x\",'Audiences Selection Sandbox'!$E$13, \"\")","v":""},{"$f":"IF('Audiences Selection Sandbox'!F27=\"x\",'Audiences Selection Sandbox'!$F$13, \"\")","v":""},{"$f":"IF('Audiences Selection Sandbox'!G27=\"x\",'Audiences Selection Sandbox'!$G$13, \"\")","v":""},null,{"$f":"IF('Audiences Selection Sandbox'!H27=\"x\",'Audiences Selection Sandbox'!$H$13, \"\")","v":""},{"$f":"IF('Audiences Selection Sandbox'!I27=\"x\",'Audiences Selection Sandbox'!$I$13, \"\")","v":""},{"$f":"IF('Audiences Selection Sandbox'!J27=\"x\",'Audiences Selection Sandbox'!$J$13, \"\")","v":""},{"$f":"IF('Audiences Selection Sandbox'!K27=\"x\",'Audiences Selection Sandbox'!$K$13, \"\")","v":""},{"$f":"IF('Audiences Selection Sandbox'!L27=\"x\",'Audiences Selection Sandbox'!$L$13, \"\")","v":""}]
[{"$f":"IF(OR('Audiences Selection Sandbox'!C28=\"x\",'Audiences Selection Sandbox'!D28=\"x\",'Audiences Selection Sandbox'!E28=\"x\",'Audiences Selection Sandbox'!F28=\"x\",'Audiences Selection Sandbox'!G28=\"x\",'Audiences Selection Sandbox'!H28=\"x\",'Audiences Selection Sandbox'!I28=\"x\",'Audiences Selection Sandbox'!J28=\"x\",'Audiences Selection Sandbox'!K28=\"x\",'Audiences Selection Sandbox'!L28=\"x\"),'Audiences Selection Sandbox'!B28, \"\")","v":""},{"$f":"IF('Audiences Selection Sandbox'!C28=\"x\",'Audiences Selection Sandbox'!$C$13, \"\")","v":""},{"$f":"IF('Audiences Selection Sandbox'!D28=\"x\",'Audiences Selection Sandbox'!$D$13, \"\")","v":""},{"$f":"IF('Audiences Selection Sandbox'!E28=\"x\",'Audiences Selection Sandbox'!$E$13, \"\")","v":""},{"$f":"IF('Audiences Selection Sandbox'!F28=\"x\",'Audiences Selection Sandbox'!$F$13, \"\")","v":""},{"$f":"IF('Audiences Selection Sandbox'!G28=\"x\",'Audiences Selection Sandbox'!$G$13, \"\")","v":""},null,{"$f":"IF('Audiences Selection Sandbox'!H28=\"x\",'Audiences Selection Sandbox'!$H$13, \"\")","v":""},{"$f":"IF('Audiences Selection Sandbox'!I28=\"x\",'Audiences Selection Sandbox'!$I$13, \"\")","v":""},{"$f":"IF('Audiences Selection Sandbox'!J28=\"x\",'Audiences Selection Sandbox'!$J$13, \"\")","v":""},{"$f":"IF('Audiences Selection Sandbox'!K28=\"x\",'Audiences Selection Sandbox'!$K$13, \"\")","v":""},{"$f":"IF('Audiences Selection Sandbox'!L28=\"x\",'Audiences Selection Sandbox'!$L$13, \"\")","v":""}]
[{"$f":"IF(OR('Audiences Selection Sandbox'!C29=\"x\",'Audiences Selection Sandbox'!D29=\"x\",'Audiences Selection Sandbox'!E29=\"x\",'Audiences Selection Sandbox'!F29=\"x\",'Audiences Selection Sandbox'!G29=\"x\",'Audiences Selection Sandbox'!H29=\"x\",'Audiences Selection Sandbox'!I29=\"x\",'Audiences Selection Sandbox'!J29=\"x\",'Audiences Selection Sandbox'!K29=\"x\",'Audiences Selection Sandbox'!L29=\"x\"),'Audiences Selection Sandbox'!B29, \"\")","v":""},{"$f":"IF('Audiences Selection Sandbox'!C29=\"x\",'Audiences Selection Sandbox'!$C$13, \"\")","v":""},{"$f":"IF('Audiences Selection Sandbox'!D29=\"x\",'Audiences Selection Sandbox'!$D$13, \"\")","v":""},{"$f":"IF('Audiences Selection Sandbox'!E29=\"x\",'Audiences Selection Sandbox'!$E$13, \"\")","v":""},{"$f":"IF('Audiences Selection Sandbox'!F29=\"x\",'Audiences Selection Sandbox'!$F$13, \"\")","v":""},{"$f":"IF('Audiences Selection Sandbox'!G29=\"x\",'Audiences Selection Sandbox'!$G$13, \"\")","v":""},null,{"$f":"IF('Audiences Selection Sandbox'!H29=\"x\",'Audiences Selection Sandbox'!$H$13, \"\")","v":""},{"$f":"IF('Audiences Selection Sandbox'!I29=\"x\",'Audiences Selection Sandbox'!$I$13, \"\")","v":""},{"$f":"IF('Audiences Selection Sandbox'!J29=\"x\",'Audiences Selection Sandbox'!$J$13, \"\")","v":""},{"$f":"IF('Audiences Selection Sandbox'!K29=\"x\",'Audiences Selection Sandbox'!$K$13, \"\")","v":""},{"$f":"IF('Audiences Selection Sandbox'!L29=\"x\",'Audiences Selection Sandbox'!$L$13, \"\")","v":""}]
[{"$f":"IF(OR('Audiences Selection Sandbox'!C30=\"x\",'Audiences Selection Sandbox'!D30=\"x\",'Audiences Selection Sandbox'!E30=\"x\",'Audiences Selection Sandbox'!F30=\"x\",'Audiences Selection Sandbox'!G30=\"x\",'Audiences Selection Sandbox'!H30=\"x\",'Audiences Selection Sandbox'!I30=\"x\",'Audiences Selection Sandbox'!J30=\"x\",'Audiences Selection Sandbox'!K30=\"x\",'Audiences Selection Sandbox'!L30=\"x\"),'Audiences Selection Sandbox'!B30, \"\")","v":""},{"$f":"IF('Audiences Selection Sandbox'!C30=\"x\",'Audiences Selection Sandbox'!$C$13, \"\")","v":""},{"$f":"IF('Audiences Selection Sandbox'!D30=\"x\",'Audiences Selection Sandbox'!$D$13, \"\")","v":""},{"$f":"IF('Audiences Selection Sandbox'!E30=\"x\",'Audiences Selection Sandbox'!$E$13, \"\")","v":""},{"$f":"IF('Audiences Selection Sandbox'!F30=\"x\",'Audiences Selection Sandbox'!$F$13, \"\")","v":""},{"$f":"IF('Audiences Selection Sandbox'!G30=\"x\",'Audiences Selection Sandbox'!$G$13, \"\")","v":""},null,{"$f":"IF('Audiences Selection Sandbox'!H30=\"x\",'Audiences Selection Sandbox'!$H$13, \"\")","v":""},{"$f":"IF('Audiences Selection Sandbox'!I30=\"x\",'Audiences Selection Sandbox'!$I$13, \"\")","v":""},{"$f":"IF('Audiences Selection Sandbox'!J30=\"x\",'Audiences Selection Sandbox'!$J$13, \"\")","v":""},{"$f":"IF('Audiences Selection Sandbox'!K30=\"x\",'Audiences Selection Sandbox'!$K$13, \"\")","v":""},{"$f":"IF('Audiences Selection Sandbox'!L30=\"x\",'Audiences Selection Sandbox'!$L$13, \"\")","v":""}]
[{"$f":"IF(OR('Audiences Selection Sandbox'!C31=\"x\",'Audiences Selection Sandbox'!D31=\"x\",'Audiences Selection Sandbox'!E31=\"x\",'Audiences Selection Sandbox'!F31=\"x\",'Audiences Selection Sandbox'!G31=\"x\",'Audiences Selection Sandbox'!H31=\"x\",'Audiences Selection Sandbox'!I31=\"x\",'Audiences Selection Sandbox'!J31=\"x\",'Audiences Selection Sandbox'!K31=\"x\",'Audiences Selection Sandbox'!L31=\"x\"),'Audiences Selection Sandbox'!B31, \"\")","v":""},{"$f":"IF('Audiences Selection Sandbox'!C31=\"x\",'Audiences Selection Sandbox'!$C$13, \"\")","v":""},{"$f":"IF('Audiences Selection Sandbox'!D31=\"x\",'Audiences Selection Sandbox'!$D$13, \"\")","v":""},{"$f":"IF('Audiences Selection Sandbox'!E31=\"x\",'Audiences Selection Sandbox'!$E$13, \"\")","v":""},{"$f":"IF('Audiences Selection Sandbox'!F31=\"x\",'Audiences Selection Sandbox'!$F$13, \"\")","v":""},{"$f":"IF('Audiences Selection Sandbox'!G31=\"x\",'Audiences Selection Sandbox'!$G$13, \"\")","v":""},null,{"$f":"IF('Audiences Selection Sandbox'!H31=\"x\",'Audiences Selection Sandbox'!$H$13, \"\")","v":""},{"$f":"IF('Audiences Selection Sandbox'!I31=\"x\",'Audiences Selection Sandbox'!$I$13, \"\")","v":""},{"$f":"IF('Audiences Selection Sandbox'!J31=\"x\",'Audiences Selection Sandbox'!$J$13, \"\")","v":""},{"$f":"IF('Audiences Selection Sandbox'!K31=\"x\",'Audiences Selection Sandbox'!$K$13, \"\")","v":""},{"$f":"IF('Audiences Selection Sandbox'!L31=\"x\",'Audiences Selection Sandbox'!$L$13, \"\")","v":""}]
[{"$f":"IF(OR('Audiences Selection Sandbox'!C32=\"x\",'Audiences Selection Sandbox'!D32=\"x\",'Audiences Selection Sandbox'!E32=\"x\",'Audiences Selection Sandbox'!F32=\"x\",'Audiences Selection Sandbox'!G32=\"x\",'Audiences Selection Sandbox'!H32=\"x\",'Audiences Selection Sandbox'!I32=\"x\",'Audiences Selection Sandbox'!J32=\"x\",'Audiences Selection Sandbox'!K32=\"x\",'Audiences Selection Sandbox'!L32=\"x\"),'Audiences Selection Sandbox'!B32, \"\")","v":""},{"$f":"IF('Audiences Selection Sandbox'!C32=\"x\",'Audiences Selection Sandbox'!$C$13, \"\")","v":""},{"$f":"IF('Audiences Selection Sandbox'!D32=\"x\",'Audiences Selection Sandbox'!$D$13, \"\")","v":""},{"$f":"IF('Audiences Selection Sandbox'!E32=\"x\",'Audiences Selection Sandbox'!$E$13, \"\")","v":""},{"$f":"IF('Audiences Selection Sandbox'!F32=\"x\",'Audiences Selection Sandbox'!$F$13, \"\")","v":""},{"$f":"IF('Audiences Selection Sandbox'!G32=\"x\",'Audiences Selection Sandbox'!$G$13, \"\")","v":""},null,{"$f":"IF('Audiences Selection Sandbox'!H32=\"x\",'Audiences Selection Sandbox'!$H$13, \"\")","v":""},{"$f":"IF('Audiences Selection Sandbox'!I32=\"x\",'Audiences Selection Sandbox'!$I$13, \"\")","v":""},{"$f":"IF('Audiences Selection Sandbox'!J32=\"x\",'Audiences Selection Sandbox'!$J$13, \"\")","v":""},{"$f":"IF('Audiences Selection Sandbox'!K32=\"x\",'Audiences Selection Sandbox'!$K$13, \"\")","v":""},{"$f":"IF('Audiences Selection Sandbox'!L32=\"x\",'Audiences Selection Sandbox'!$L$13, \"\")","v":""}]
[{"$f":"IF(OR('Audiences Selection Sandbox'!C33=\"x\",'Audiences Selection Sandbox'!D33=\"x\",'Audiences Selection Sandbox'!E33=\"x\",'Audiences Selection Sandbox'!F33=\"x\",'Audiences Selection Sandbox'!G33=\"x\",'Audiences Selection Sandbox'!H33=\"x\",'Audiences Selection Sandbox'!I33=\"x\",'Audiences Selection Sandbox'!J33=\"x\",'Audiences Selection Sandbox'!K33=\"x\",'Audiences Selection Sandbox'!L33=\"x\"),'Audiences Selection Sandbox'!B33, \"\")","v":""},{"$f":"IF('Audiences Selection Sandbox'!C33=\"x\",'Audiences Selection Sandbox'!$C$13, \"\")","v":""},{"$f":"IF('Audiences Selection Sandbox'!D33=\"x\",'Audiences Selection Sandbox'!$D$13, \"\")","v":""},{"$f":"IF('Audiences Selection Sandbox'!E33=\"x\",'Audiences Selection Sandbox'!$E$13, \"\")","v":""},{"$f":"IF('Audiences Selection Sandbox'!F33=\"x\",'Audiences Selection Sandbox'!$F$13, \"\")","v":""},{"$f":"IF('Audiences Selection Sandbox'!G33=\"x\",'Audiences Selection Sandbox'!$G$13, \"\")","v":""},null,{"$f":"IF('Audiences Selection Sandbox'!H33=\"x\",'Audiences Selection Sandbox'!$H$13, \"\")","v":""},{"$f":"IF('Audiences Selection Sandbox'!I33=\"x\",'Audiences Selection Sandbox'!$I$13, \"\")","v":""},{"$f":"IF('Audiences Selection Sandbox'!J33=\"x\",'Audiences Selection Sandbox'!$J$13, \"\")","v":""},{"$f":"IF('Audiences Selection Sandbox'!K33=\"x\",'Audiences Selection Sandbox'!$K$13, \"\")","v":""},{"$f":"IF('Audiences Selection Sandbox'!L33=\"x\",'Audiences Selection Sandbox'!$L$13, \"\")","v":""}]
[{"$f":"IF(OR('Audiences Selection Sandbox'!C34=\"x\",'Audiences Selection Sandbox'!D34=\"x\",'Audiences Selection Sandbox'!E34=\"x\",'Audiences Selection Sandbox'!F34=\"x\",'Audiences Selection Sandbox'!G34=\"x\",'Audiences Selection Sandbox'!H34=\"x\",'Audiences Selection Sandbox'!I34=\"x\",'Audiences Selection Sandbox'!J34=\"x\",'Audiences Selection Sandbox'!K34=\"x\",'Audiences Selection Sandbox'!L34=\"x\"),'Audiences Selection Sandbox'!B34, \"\")","v":""},{"$f":"IF('Audiences Selection Sandbox'!C34=\"x\",'Audiences Selection Sandbox'!$C$13, \"\")","v":""},{"$f":"IF('Audiences Selection Sandbox'!D34=\"x\",'Audiences Selection Sandbox'!$D$13, \"\")","v":""},{"$f":"IF('Audiences Selection Sandbox'!E34=\"x\",'Audiences Selection Sandbox'!$E$13, \"\")","v":""},{"$f":"IF('Audiences Selection Sandbox'!F34=\"x\",'Audiences Selection Sandbox'!$F$13, \"\")","v":""},{"$f":"IF('Audiences Selection Sandbox'!G34=\"x\",'Audiences Selection Sandbox'!$G$13, \"\")","v":""},null,{"$f":"IF('Audiences Selection Sandbox'!H34=\"x\",'Audiences Selection Sandbox'!$H$13, \"\")","v":""},{"$f":"IF('Audiences Selection Sandbox'!I34=\"x\",'Audiences Selection Sandbox'!$I$13, \"\")","v":""},{"$f":"IF('Audiences Selection Sandbox'!J34=\"x\",'Audiences Selection Sandbox'!$J$13, \"\")","v":""},{"$f":"IF('Audiences Selection Sandbox'!K34=\"x\",'Audiences Selection Sandbox'!$K$13, \"\")","v":""},{"$f":"IF('Audiences Selection Sandbox'!L34=\"x\",'Audiences Selection Sandbox'!$L$13, \"\")","v":""}]
[{"$f":"IF(OR('Audiences Selection Sandbox'!C35=\"x\",'Audiences Selection Sandbox'!D35=\"x\",'Audiences Selection Sandbox'!E35=\"x\",'Audiences Selection Sandbox'!F35=\"x\",'Audiences Selection Sandbox'!G35=\"x\",'Audiences Selection Sandbox'!H35=\"x\",'Audiences Selection Sandbox'!I35=\"x\",'Audiences Selection Sandbox'!J35=\"x\",'Audiences Selection Sandbox'!K35=\"x\",'Audiences Selection Sandbox'!L35=\"x\"),'Audiences Selection Sandbox'!B35, \"\")","v":""},{"$f":"IF('Audiences Selection Sandbox'!C35=\"x\",'Audiences Selection Sandbox'!$C$13, \"\")","v":""},{"$f":"IF('Audiences Selection Sandbox'!D35=\"x\",'Audiences Selection Sandbox'!$D$13, \"\")","v":""},{"$f":"IF('Audiences Selection Sandbox'!E35=\"x\",'Audiences Selection Sandbox'!$E$13, \"\")","v":""},{"$f":"IF('Audiences Selection Sandbox'!F35=\"x\",'Audiences Selection Sandbox'!$F$13, \"\")","v":""},{"$f":"IF('Audiences Selection Sandbox'!G35=\"x\",'Audiences Selection Sandbox'!$G$13, \"\")","v":""},null,{"$f":"IF('Audiences Selection Sandbox'!H35=\"x\",'Audiences Selection Sandbox'!$H$13, \"\")","v":""},{"$f":"IF('Audiences Selection Sandbox'!I35=\"x\",'Audiences Selection Sandbox'!$I$13, \"\")","v":""},{"$f":"IF('Audiences Selection Sandbox'!J35=\"x\",'Audiences Selection Sandbox'!$J$13, \"\")","v":""},{"$f":"IF('Audiences Selection Sandbox'!K35=\"x\",'Audiences Selection Sandbox'!$K$13, \"\")","v":""},{"$f":"IF('Audiences Selection Sandbox'!L35=\"x\",'Audiences Selection Sandbox'!$L$13, \"\")","v":""}]
[{"$f":"IF(OR('Audiences Selection Sandbox'!C36=\"x\",'Audiences Selection Sandbox'!D36=\"x\",'Audiences Selection Sandbox'!E36=\"x\",'Audiences Selection Sandbox'!F36=\"x\",'Audiences Selection Sandbox'!G36=\"x\",'Audiences Selection Sandbox'!H36=\"x\",'Audiences Selection Sandbox'!I36=\"x\",'Audiences Selection Sandbox'!J36=\"x\",'Audiences Selection Sandbox'!K36=\"x\",'Audiences Selection Sandbox'!L36=\"x\"),'Audiences Selection Sandbox'!B36, \"\")","v":""},{"$f":"IF('Audiences Selection Sandbox'!C36=\"x\",'Audiences Selection Sandbox'!$C$13, \"\")","v":""},{"$f":"IF('Audiences Selection Sandbox'!D36=\"x\",'Audiences Selection Sandbox'!$D$13, \"\")","v":""},{"$f":"IF('Audiences Selection Sandbox'!E36=\"x\",'Audiences Selection Sandbox'!$E$13, \"\")","v":""},{"$f":"IF('Audiences Selection Sandbox'!F36=\"x\",'Audiences Selection Sandbox'!$F$13, \"\")","v":""},{"$f":"IF('Audiences Selection Sandbox'!G36=\"x\",'Audiences Selection Sandbox'!$G$13, \"\")","v":""},null,{"$f":"IF('Audiences Selection Sandbox'!H36=\"x\",'Audiences Selection Sandbox'!$H$13, \"\")","v":""},{"$f":"IF('Audiences Selection Sandbox'!I36=\"x\",'Audiences Selection Sandbox'!$I$13, \"\")","v":""},{"$f":"IF('Audiences Selection Sandbox'!J36=\"x\",'Audiences Selection Sandbox'!$J$13, \"\")","v":""},{"$f":"IF('Audiences Selection Sandbox'!K36=\"x\",'Audiences Selection Sandbox'!$K$13, \"\")","v":""},{"$f":"IF('Audiences Selection Sandbox'!L36=\"x\",'Audiences Selection Sandbox'!$L$13, \"\")","v":""}]
[{"$f":"IF(OR('Audiences Selection Sandbox'!C37=\"x\",'Audiences Selection Sandbox'!D37=\"x\",'Audiences Selection Sandbox'!E37=\"x\",'Audiences Selection Sandbox'!F37=\"x\",'Audiences Selection Sandbox'!G37=\"x\",'Audiences Selection Sandbox'!H37=\"x\",'Audiences Selection Sandbox'!I37=\"x\",'Audiences Selection Sandbox'!J37=\"x\",'Audiences Selection Sandbox'!K37=\"x\",'Audiences Selection Sandbox'!L37=\"x\"),'Audiences Selection Sandbox'!B37, \"\")","v":""},{"$f":"IF('Audiences Selection Sandbox'!C37=\"x\",'Audiences Selection Sandbox'!$C$13, \"\")","v":""},{"$f":"IF('Audiences Selection Sandbox'!D37=\"x\",'Audiences Selection Sandbox'!$D$13, \"\")","v":""},{"$f":"IF('Audiences Selection Sandbox'!E37=\"x\",'Audiences Selection Sandbox'!$E$13, \"\")","v":""},{"$f":"IF('Audiences Selection Sandbox'!F37=\"x\",'Audiences Selection Sandbox'!$F$13, \"\")","v":""},{"$f":"IF('Audiences Selection Sandbox'!G37=\"x\",'Audiences Selection Sandbox'!$G$13, \"\")","v":""},null,{"$f":"IF('Audiences Selection Sandbox'!H37=\"x\",'Audiences Selection Sandbox'!$H$13, \"\")","v":""},{"$f":"IF('Audiences Selection Sandbox'!I37=\"x\",'Audiences Selection Sandbox'!$I$13, \"\")","v":""},{"$f":"IF('Audiences Selection Sandbox'!J37=\"x\",'Audiences Selection Sandbox'!$J$13, \"\")","v":""},{"$f":"IF('Audiences Selection Sandbox'!K37=\"x\",'Audiences Selection Sandbox'!$K$13, \"\")","v":""},{"$f":"IF('Audiences Selection Sandbox'!L37=\"x\",'Audiences Selection Sandbox'!$L$13, \"\")","v":""}]
[{"$f":"IF(OR('Audiences Selection Sandbox'!C38=\"x\",'Audiences Selection Sandbox'!D38=\"x\",'Audiences Selection Sandbox'!E38=\"x\",'Audiences Selection Sandbox'!F38=\"x\",'Audiences Selection Sandbox'!G38=\"x\",'Audiences Selection Sandbox'!H38=\"x\",'Audiences Selection Sandbox'!I38=\"x\",'Audiences Selection Sandbox'!J38=\"x\",'Audiences Selection Sandbox'!K38=\"x\",'Audiences Selection Sandbox'!L38=\"x\"),'Audiences Selection Sandbox'!B38, \"\")","v":""},{"$f":"IF('Audiences Selection Sandbox'!C38=\"x\",'Audiences Selection Sandbox'!$C$13, \"\")","v":""},{"$f":"IF('Audiences Selection Sandbox'!D38=\"x\",'Audiences Selection Sandbox'!$D$13, \"\")","v":""},{"$f":"IF('Audiences Selection Sandbox'!E38=\"x\",'Audiences Selection Sandbox'!$E$13, \"\")","v":""},{"$f":"IF('Audiences Selection Sandbox'!F38=\"x\",'Audiences Selection Sandbox'!$F$13, \"\")","v":""},{"$f":"IF('Audiences Selection Sandbox'!G38=\"x\",'Audiences Selection Sandbox'!$G$13, \"\")","v":""},null,{"$f":"IF('Audiences Selection Sandbox'!H38=\"x\",'Audiences Selection Sandbox'!$H$13, \"\")","v":""},{"$f":"IF('Audiences Selection Sandbox'!I38=\"x\",'Audiences Selection Sandbox'!$I$13, \"\")","v":""},{"$f":"IF('Audiences Selection Sandbox'!J38=\"x\",'Audiences Selection Sandbox'!$J$13, \"\")","v":""},{"$f":"IF('Audiences Selection Sandbox'!K38=\"x\",'Audiences Selection Sandbox'!$K$13, \"\")","v":""},{"$f":"IF('Audiences Selection Sandbox'!L38=\"x\",'Audiences Selection Sandbox'!$L$13, \"\")","v":""}]
[{"$f":"IF(OR('Audiences Selection Sandbox'!C39=\"x\",'Audiences Selection Sandbox'!D39=\"x\",'Audiences Selection Sandbox'!E39=\"x\",'Audiences Selection Sandbox'!F39=\"x\",'Audiences Selection Sandbox'!G39=\"x\",'Audiences Selection Sandbox'!H39=\"x\",'Audiences Selection Sandbox'!I39=\"x\",'Audiences Selection Sandbox'!J39=\"x\",'Audiences Selection Sandbox'!K39=\"x\",'Audiences Selection Sandbox'!L39=\"x\"),'Audiences Selection Sandbox'!B39, \"\")","v":""},{"$f":"IF('Audiences Selection Sandbox'!C39=\"x\",'Audiences Selection Sandbox'!$C$13, \"\")","v":""},{"$f":"IF('Audiences Selection Sandbox'!D39=\"x\",'Audiences Selection Sandbox'!$D$13, \"\")","v":""},{"$f":"IF('Audiences Selection Sandbox'!E39=\"x\",'Audiences Selection Sandbox'!$E$13, \"\")","v":""},{"$f":"IF('Audiences Selection Sandbox'!F39=\"x\",'Audiences Selection Sandbox'!$F$13, \"\")","v":""},{"$f":"IF('Audiences Selection Sandbox'!G39=\"x\",'Audiences Selection Sandbox'!$G$13, \"\")","v":""},null,{"$f":"IF('Audiences Selection Sandbox'!H39=\"x\",'Audiences Selection Sandbox'!$H$13, \"\")","v":""},{"$f":"IF('Audiences Selection Sandbox'!I39=\"x\",'Audiences Selection Sandbox'!$I$13, \"\")","v":""},{"$f":"IF('Audiences Selection Sandbox'!J39=\"x\",'Audiences Selection Sandbox'!$J$13, \"\")","v":""},{"$f":"IF('Audiences Selection Sandbox'!K39=\"x\",'Audiences Selection Sandbox'!$K$13, \"\")","v":""},{"$f":"IF('Audiences Selection Sandbox'!L39=\"x\",'Audiences Selection Sandbox'!$L$13, \"\")","v":""}]
[{"$f":"IF(OR('Audiences Selection Sandbox'!C40=\"x\",'Audiences Selection Sandbox'!D40=\"x\",'Audiences Selection Sandbox'!E40=\"x\",'Audiences Selection Sandbox'!F40=\"x\",'Audiences Selection Sandbox'!G40=\"x\",'Audiences Selection Sandbox'!H40=\"x\",'Audiences Selection Sandbox'!I40=\"x\",'Audiences Selection Sandbox'!J40=\"x\",'Audiences Selection Sandbox'!K40=\"x\",'Audiences Selection Sandbox'!L40=\"x\"),'Audiences Selection Sandbox'!B40, \"\")","v":""},{"$f":"IF('Audiences Selection Sandbox'!C40=\"x\",'Audiences Selection Sandbox'!$C$13, \"\")","v":""},{"$f":"IF('Audiences Selection Sandbox'!D40=\"x\",'Audiences Selection Sandbox'!$D$13, \"\")","v":""},{"$f":"IF('Audiences Selection Sandbox'!E40=\"x\",'Audiences Selection Sandbox'!$E$13, \"\")","v":""},{"$f":"IF('Audiences Selection Sandbox'!F40=\"x\",'Audiences Selection Sandbox'!$F$13, \"\")","v":""},{"$f":"IF('Audiences Selection Sandbox'!G40=\"x\",'Audiences Selection Sandbox'!$G$13, \"\")","v":""},null,{"$f":"IF('Audiences Selection Sandbox'!H40=\"x\",'Audiences Selection Sandbox'!$H$13, \"\")","v":""},{"$f":"IF('Audiences Selection Sandbox'!I40=\"x\",'Audiences Selection Sandbox'!$I$13, \"\")","v":""},{"$f":"IF('Audiences Selection Sandbox'!J40=\"x\",'Audiences Selection Sandbox'!$J$13, \"\")","v":""},{"$f":"IF('Audiences Selection Sandbox'!K40=\"x\",'Audiences Selection Sandbox'!$K$13, \"\")","v":""},{"$f":"IF('Audiences Selection Sandbox'!L40=\"x\",'Audiences Selection Sandbox'!$L$13, \"\")","v":""}]
[{"$f":"IF(OR('Audiences Selection Sandbox'!C41=\"x\",'Audiences Selection Sandbox'!D41=\"x\",'Audiences Selection Sandbox'!E41=\"x\",'Audiences Selection Sandbox'!F41=\"x\",'Audiences Selection Sandbox'!G41=\"x\",'Audiences Selection Sandbox'!H41=\"x\",'Audiences Selection Sandbox'!I41=\"x\",'Audiences Selection Sandbox'!J41=\"x\",'Audiences Selection Sandbox'!K41=\"x\",'Audiences Selection Sandbox'!L41=\"x\"),'Audiences Selection Sandbox'!B41, \"\")","v":""},{"$f":"IF('Audiences Selection Sandbox'!C41=\"x\",'Audiences Selection Sandbox'!$C$13, \"\")","v":""},{"$f":"IF('Audiences Selection Sandbox'!D41=\"x\",'Audiences Selection Sandbox'!$D$13, \"\")","v":""},{"$f":"IF('Audiences Selection Sandbox'!E41=\"x\",'Audiences Selection Sandbox'!$E$13, \"\")","v":""},{"$f":"IF('Audiences Selection Sandbox'!F41=\"x\",'Audiences Selection Sandbox'!$F$13, \"\")","v":""},{"$f":"IF('Audiences Selection Sandbox'!G41=\"x\",'Audiences Selection Sandbox'!$G$13, \"\")","v":""},null,{"$f":"IF('Audiences Selection Sandbox'!H41=\"x\",'Audiences Selection Sandbox'!$H$13, \"\")","v":""},{"$f":"IF('Audiences Selection Sandbox'!I41=\"x\",'Audiences Selection Sandbox'!$I$13, \"\")","v":""},{"$f":"IF('Audiences Selection Sandbox'!J41=\"x\",'Audiences Selection Sandbox'!$J$13, \"\")","v":""},{"$f":"IF('Audiences Selection Sandbox'!K41=\"x\",'Audiences Selection Sandbox'!$K$13, \"\")","v":""},{"$f":"IF('Audiences Selection Sandbox'!L41=\"x\",'Audiences Selection Sandbox'!$L$13, \"\")","v":""}]
[{"$f":"IF(OR('Audiences Selection Sandbox'!C42=\"x\",'Audiences Selection Sandbox'!D42=\"x\",'Audiences Selection Sandbox'!E42=\"x\",'Audiences Selection Sandbox'!F42=\"x\",'Audiences Selection Sandbox'!G42=\"x\",'Audiences Selection Sandbox'!H42=\"x\",'Audiences Selection Sandbox'!I42=\"x\",'Audiences Selection Sandbox'!J42=\"x\",'Audiences Selection Sandbox'!K42=\"x\",'Audiences Selection Sandbox'!L42=\"x\"),'Audiences Selection Sandbox'!B42, \"\")","v":""},{"$f":"IF('Audiences Selection Sandbox'!C42=\"x\",'Audiences Selection Sandbox'!$C$13, \"\")","v":""},{"$f":"IF('Audiences Selection Sandbox'!D42=\"x\",'Audiences Selection Sandbox'!$D$13, \"\")","v":""},{"$f":"IF('Audiences Selection Sandbox'!E42=\"x\",'Audiences Selection Sandbox'!$E$13, \"\")","v":""},{"$f":"IF('Audiences Selection Sandbox'!F42=\"x\",'Audiences Selection Sandbox'!$F$13, \"\")","v":""},{"$f":"IF('Audiences Selection Sandbox'!G42=\"x\",'Audiences Selection Sandbox'!$G$13, \"\")","v":""},null,{"$f":"IF('Audiences Selection Sandbox'!H42=\"x\",'Audiences Selection Sandbox'!$H$13, \"\")","v":""},{"$f":"IF('Audiences Selection Sandbox'!I42=\"x\",'Audiences Selection Sandbox'!$I$13, \"\")","v":""},{"$f":"IF('Audiences Selection Sandbox'!J42=\"x\",'Audiences Selection Sandbox'!$J$13, \"\")","v":""},{"$f":"IF('Audiences Selection Sandbox'!K42=\"x\",'Audiences Selection Sandbox'!$K$13, \"\")","v":""},{"$f":"IF('Audiences Selection Sandbox'!L42=\"x\",'Audiences Selection Sandbox'!$L$13, \"\")","v":""}]
[{"$f":"IF(OR('Audiences Selection Sandbox'!C43,'Audiences Selection Sandbox'!D43,'Audiences Selection Sandbox'!E43,'Audiences Selection Sandbox'!F43,'Audiences Selection Sandbox'!G43=\"x\"),'Audiences Selection Sandbox'!B43, \"\")","v":""},{"$f":"IF('Audiences Selection Sandbox'!C43=\"x\",'Audiences Selection Sandbox'!$C$13, \"\")","v":""},null,null,null,null,null,{"$f":"IF('Audiences Selection Sandbox'!H43=\"x\",'Audiences Selection Sandbox'!$H$13, \"\")","v":""},{"$f":"IF('Audiences Selection Sandbox'!I43=\"x\",'Audiences Selection Sandbox'!$I$13, \"\")","v":""},{"$f":"IF('Audiences Selection Sandbox'!J43=\"x\",'Audiences Selection Sandbox'!$J$13, \"\")","v":""},{"$f":"IF('Audiences Selection Sandbox'!K43=\"x\",'Audiences Selection Sandbox'!$K$13, \"\")","v":""},{"$f":"IF('Audiences Selection Sandbox'!L43=\"x\",'Audiences Selection Sandbox'!$L$13, \"\")","v":""}]
[{"$f":"IF(OR('Audiences Selection Sandbox'!C44,'Audiences Selection Sandbox'!D44,'Audiences Selection Sandbox'!E44,'Audiences Selection Sandbox'!F44,'Audiences Selection Sandbox'!G44=\"x\"),'Audiences Selection Sandbox'!B44, \"\")","v":""},{"$f":"IF('Audiences Selection Sandbox'!C44=\"x\",'Audiences Selection Sandbox'!$C$13, \"\")","v":""},null,null,null,null,null,{"$f":"IF('Audiences Selection Sandbox'!H44=\"x\",'Audiences Selection Sandbox'!$H$13, \"\")","v":""},{"$f":"IF('Audiences Selection Sandbox'!I44=\"x\",'Audiences Selection Sandbox'!$I$13, \"\")","v":""},null,{"$f":"IF('Audiences Selection Sandbox'!K44=\"x\",'Audiences Selection Sandbox'!$K$13, \"\")","v":""},{"$f":"IF('Audiences Selection Sandbox'!L44=\"x\",'Audiences Selection Sandbox'!$L$13, \"\")","v":""}]
[{"$f":"IF(OR('Audiences Selection Sandbox'!C45,'Audiences Selection Sandbox'!D45,'Audiences Selection Sandbox'!E45,'Audiences Selection Sandbox'!F45,'Audiences Selection Sandbox'!G45=\"x\"),'Audiences Selection Sandbox'!B45, \"\")","v":""},null,null,null,null,null,null,{"$f":"IF('Audiences Selection Sandbox'!H45=\"x\",'Audiences Selection Sandbox'!$H$13, \"\")","v":""},{"$f":"IF('Audiences Selection Sandbox'!I45=\"x\",'Audiences Selection Sandbox'!$I$13, \"\")","v":""}]
[{"$f":"IF(OR('Audiences Selection Sandbox'!C46,'Audiences Selection Sandbox'!D46,'Audiences Selection Sandbox'!E46,'Audiences Selection Sandbox'!F46,'Audiences Selection Sandbox'!G46=\"x\"),'Audiences Selection Sandbox'!B46, \"\")","v":""},null,null,null,null,null,null,{"$f":"IF('Audiences Selection Sandbox'!H46=\"x\",'Audiences Selection Sandbox'!$H$13, \"\")","v":""}]
[{"$f":"IF(OR('Audiences Selection Sandbox'!C47,'Audiences Selection Sandbox'!D47,'Audiences Selection Sandbox'!E47,'Audiences Selection Sandbox'!F47,'Audiences Selection Sandbox'!G47=\"x\"),'Audiences Selection Sandbox'!B47, \"\")","v":""}]
[{"$f":"IF(OR('Audiences Selection Sandbox'!C48,'Audiences Selection Sandbox'!D48,'Audiences Selection Sandbox'!E48,'Audiences Selection Sandbox'!F48,'Audiences Selection Sandbox'!G48=\"x\"),'Audiences Selection Sandbox'!B48, \"\")","v":""}]
[{"$f":"IF(OR('Audiences Selection Sandbox'!C49,'Audiences Selection Sandbox'!D49,'Audiences Selection Sandbox'!E49,'Audiences Selection Sandbox'!F49,'Audiences Selection Sandbox'!G49=\"x\"),'Audiences Selection Sandbox'!B49, \"\")","v":""}]
[{"$f":"IF(OR('Audiences Selection Sandbox'!C50,'Audiences Selection Sandbox'!D50,'Audiences Selection Sandbox'!E50,'Audiences Selection Sandbox'!F50,'Audiences Selection Sandbox'!G50=\"x\"),'Audiences Selection Sandbox'!B50, \"\")","v":""}]
[{"$f":"IF(OR('Audiences Selection Sandbox'!C51,'Audiences Selection Sandbox'!D51,'Audiences Selection Sandbox'!E51,'Audiences Selection Sandbox'!F51,'Audiences Selection Sandbox'!G51=\"x\"),'Audiences Selection Sandbox'!B51, \"\")","v":""}]
[{"$f":"IF(OR('Audiences Selection Sandbox'!C52,'Audiences Selection Sandbox'!D52,'Audiences Selection Sandbox'!E52,'Audiences Selection Sandbox'!F52,'Audiences Selection Sandbox'!G52=\"x\"),'Audiences Selection Sandbox'!B52, \"\")","v":""}]
[{"$f":"IF(OR('Audiences Selection Sandbox'!C53,'Audiences Selection Sandbox'!D53,'Audiences Selection Sandbox'!E53,'Audiences Selection Sandbox'!F53,'Audiences Selection Sandbox'!G53=\"x\"),'Audiences Selection Sandbox'!B53, \"\")","v":""}]
[{"$f":"IF(OR('Audiences Selection Sandbox'!C54,'Audiences Selection Sandbox'!D54,'Audiences Selection Sandbox'!E54,'Audiences Selection Sandbox'!F54,'Audiences Selection Sandbox'!G54=\"x\"),'Audiences Selection Sandbox'!B54, \"\")","v":""}]
[{"$f":"IF(OR('Audiences Selection Sandbox'!C55,'Audiences Selection Sandbox'!D55,'Audiences Selection Sandbox'!E55,'Audiences Selection Sandbox'!F55,'Audiences Selection Sandbox'!G55=\"x\"),'Audiences Selection Sandbox'!B55, \"\")","v":""}]
[{"$f":"IF(OR('Audiences Selection Sandbox'!C56,'Audiences Selection Sandbox'!D56,'Audiences Selection Sandbox'!E56,'Audiences Selection Sandbox'!F56,'Audiences Selection Sandbox'!G56=\"x\"),'Audiences Selection Sandbox'!B56, \"\")","v":""}]
[{"$f":"IF(OR('Audiences Selection Sandbox'!C57,'Audiences Selection Sandbox'!D57,'Audiences Selection Sandbox'!E57,'Audiences Selection Sandbox'!F57,'Audiences Selection Sandbox'!G57=\"x\"),'Audiences Selection Sandbox'!B57, \"\")","v":""}]
[{"$f":"IF(OR('Audiences Selection Sandbox'!C58,'Audiences Selection Sandbox'!D58,'Audiences Selection Sandbox'!E58,'Audiences Selection Sandbox'!F58,'Audiences Selection Sandbox'!G58=\"x\"),'Audiences Selection Sandbox'!B58, \"\")","v":""}]
[{"$f":"IF(OR('Audiences Selection Sandbox'!C59,'Audiences Selection Sandbox'!D59,'Audiences Selection Sandbox'!E59,'Audiences Selection Sandbox'!F59,'Audiences Selection Sandbox'!G59=\"x\"),'Audiences Selection Sandbox'!B59, \"\")","v":""}]
[{"$f":"IF(OR('Audiences Selection Sandbox'!C60,'Audiences Selection Sandbox'!D60,'Audiences Selection Sandbox'!E60,'Audiences Selection Sandbox'!F60,'Audiences Selection Sandbox'!G60=\"x\"),'Audiences Selection Sandbox'!B60, \"\")","v":""}]
[{"$f":"IF(OR('Audiences Selection Sandbox'!C61,'Audiences Selection Sandbox'!D61,'Audiences Selection Sandbox'!E61,'Audiences Selection Sandbox'!F61,'Audiences Selection Sandbox'!G61=\"x\"),'Audiences Selection Sandbox'!B61, \"\")","v":""}]
[{"$f":"IF(OR('Audiences Selection Sandbox'!C62,'Audiences Selection Sandbox'!D62,'Audiences Selection Sandbox'!E62,'Audiences Selection Sandbox'!F62,'Audiences Selection Sandbox'!G62=\"x\"),'Audiences Selection Sandbox'!B62, \"\")","v":""}]
[{"$f":"IF(OR('Audiences Selection Sandbox'!C63,'Audiences Selection Sandbox'!D63,'Audiences Selection Sandbox'!E63,'Audiences Selection Sandbox'!F63,'Audiences Selection Sandbox'!G63=\"x\"),'Audiences Selection Sandbox'!B63, \"\")","v":""}]
[{"$f":"IF(OR('Audiences Selection Sandbox'!C64,'Audiences Selection Sandbox'!D64,'Audiences Selection Sandbox'!E64,'Audiences Selection Sandbox'!F64,'Audiences Selection Sandbox'!G64=\"x\"),'Audiences Selection Sandbox'!B64, \"\")","v":""}]
[{"$f":"IF(OR('Audiences Selection Sandbox'!C65,'Audiences Selection Sandbox'!D65,'Audiences Selection Sandbox'!E65,'Audiences Selection Sandbox'!F65,'Audiences Selection Sandbox'!G65=\"x\"),'Audiences Selection Sandbox'!B65, \"\")","v":""}]
[{"$f":"IF(OR('Audiences Selection Sandbox'!C66,'Audiences Selection Sandbox'!D66,'Audiences Selection Sandbox'!E66,'Audiences Selection Sandbox'!F66,'Audiences Selection Sandbox'!G66=\"x\"),'Audiences Selection Sandbox'!B66, \"\")","v":""}]
[{"$f":"IF(OR('Audiences Selection Sandbox'!C67,'Audiences Selection Sandbox'!D67,'Audiences Selection Sandbox'!E67,'Audiences Selection Sandbox'!F67,'Audiences Selection Sandbox'!G67=\"x\"),'Audiences Selection Sandbox'!B67, \"\")","v":""}]
[{"$f":"IF(OR('Audiences Selection Sandbox'!C68,'Audiences Selection Sandbox'!D68,'Audiences Selection Sandbox'!E68,'Audiences Selection Sandbox'!F68,'Audiences Selection Sandbox'!G68=\"x\"),'Audiences Selection Sandbox'!B68, \"\")","v":""}]
[{"$f":"IF(OR('Audiences Selection Sandbox'!C69,'Audiences Selection Sandbox'!D69,'Audiences Selection Sandbox'!E69,'Audiences Selection Sandbox'!F69,'Audiences Selection Sandbox'!G69=\"x\"),'Audiences Selection Sandbox'!B69, \"\")","v":""}]
[{"$f":"IF(OR('Audiences Selection Sandbox'!C70,'Audiences Selection Sandbox'!D70,'Audiences Selection Sandbox'!E70,'Audiences Selection Sandbox'!F70,'Audiences Selection Sandbox'!G70=\"x\"),'Audiences Selection Sandbox'!B70, \"\")","v":""}]
[{"$f":"IF(OR('Audiences Selection Sandbox'!C71,'Audiences Selection Sandbox'!D71,'Audiences Selection Sandbox'!E71,'Audiences Selection Sandbox'!F71,'Audiences Selection Sandbox'!G71=\"x\"),'Audiences Selection Sandbox'!B71, \"\")","v":""}]
[{"$f":"IF(OR('Audiences Selection Sandbox'!C72,'Audiences Selection Sandbox'!D72,'Audiences Selection Sandbox'!E72,'Audiences Selection Sandbox'!F72,'Audiences Selection Sandbox'!G72=\"x\"),'Audiences Selection Sandbox'!B72, \"\")","v":""}]

{"sheet":"Comm Plan Summary","index":3,"n_rows":10,"n_cols":12,"rows_kept":10,"cut":false,"hidden":false,"merged":[]}
["Filters","SAMPLE","Comm Plan 1","Comm Plan 2","Comm Plan 3","Comm Plan 4","Comm Plan 5","Comm Plan 6","Comm Plan 7","Comm Plan 8","Comm Plan 9","Comm Plan 10"]
["Graduation Year",2025,{"$f":"_xlfn.CONCAT(IF('Comm Plan 1'!$B2:$B3=\"x\",'Comm Plan 1'!$A2:$A3&CHAR(10),\"\"))","v":""},{"$f":"_xlfn.CONCAT(IF('Comm Plan 2'!$B2:$B3=\"x\",'Comm Plan 2'!$A2:$A3&CHAR(10),\"\"))","v":""},{"$f":"_xlfn.CONCAT(IF('Comm Plan 3'!$B2:$B3=\"x\",'Comm Plan 3'!$A2:$A3&CHAR(10),\"\"))","v":""},{"$f":"_xlfn.CONCAT(IF('Comm Plan 4'!$B2:$B3=\"x\",'Comm Plan 4'!$A2:$A3&CHAR(10),\"\"))","v":""},{"$f":"_xlfn.CONCAT(IF('Comm Plan 5'!$B2:$B3=\"x\",'Comm Plan 5'!$A2:$A3&CHAR(10),\"\"))","v":""},{"$f":"_xlfn.CONCAT(IF('Comm Plan 6'!$B2:$B3=\"x\",'Comm Plan 6'!$A2:$A3&CHAR(10),\"\"))","v":""},{"$f":"_xlfn.CONCAT(IF('Comm Plan 7'!$B2:$B3=\"x\",'Comm Plan 7'!$A2:$A3&CHAR(10),\"\"))","v":""},{"$f":"_xlfn.CONCAT(IF('Comm Plan 8'!$B2:$B3=\"x\",'Comm Plan 8'!$A2:$A3&CHAR(10),\"\"))","v":""},{"$f":"_xlfn.CONCAT(IF('Comm Plan 9'!$B2:$B3=\"x\",'Comm Plan 9'!$A2:$A3&CHAR(10),\"\"))","v":""},{"$f":"_xlfn.CONCAT(IF('Comm Plan 10'!$B2:$B3=\"x\",'Comm Plan 10'!$A2:$A3&CHAR(10),\"\"))","v":""}]
["High-Challenge Environment","Yes ",{"$f":"_xlfn.CONCAT(IF('Comm Plan 1'!$D2=\"x\",'Comm Plan 1'!$C2,\"\"))","v":""},{"$f":"_xlfn.CONCAT(IF('Comm Plan 2'!$D2=\"x\",'Comm Plan 2'!$C2,\"\"))","v":""},{"$f":"_xlfn.CONCAT(IF('Comm Plan 3'!$D2=\"x\",'Comm Plan 3'!$C2,\"\"))","v":""},{"$f":"_xlfn.CONCAT(IF('Comm Plan 4'!$D2=\"x\",'Comm Plan 4'!$C2,\"\"))","v":""},{"$f":"_xlfn.CONCAT(IF('Comm Plan 5'!$D2=\"x\",'Comm Plan 5'!$C2,\"\"))","v":""},{"$f":"_xlfn.CONCAT(IF('Comm Plan 6'!$D2=\"x\",'Comm Plan 6'!$C2,\"\"))","v":""},{"$f":"_xlfn.CONCAT(IF('Comm Plan 7'!$D2=\"x\",'Comm Plan 7'!$C2,\"\"))","v":""},{"$f":"_xlfn.CONCAT(IF('Comm Plan 8'!$D2=\"x\",'Comm Plan 8'!$C2,\"\"))","v":""},{"$f":"_xlfn.CONCAT(IF('Comm Plan 9'!$D2=\"x\",'Comm Plan 9'!$C2,\"\"))","v":""},{"$f":"_xlfn.CONCAT(IF('Comm Plan 10'!$D2=\"x\",'Comm Plan 10'!$C2,\"\"))","v":""}]
["State/Territory","Pennsylvania\n New Jersey Delaware",{"$f":"_xlfn.CONCAT(IF('Comm Plan 1'!$F2:$F58=\"x\",'Comm Plan 1'!$E2:$E58&CHAR(10),\"\"))","v":""},{"$f":"_xlfn.CONCAT(IF('Comm Plan 2'!$F2:$F58=\"x\",'Comm Plan 2'!$E2:$E58&CHAR(10),\"\"))","v":""},{"$f":"_xlfn.CONCAT(IF('Comm Plan 3'!$F2:$F58=\"x\",'Comm Plan 3'!$E2:$E58&CHAR(10),\"\"))","v":""},{"$f":"_xlfn.CONCAT(IF('Comm Plan 4'!$F2:$F58=\"x\",'Comm Plan 4'!$E2:$E58&CHAR(10),\"\"))","v":""},{"$f":"_xlfn.CONCAT(IF('Comm Plan 5'!$F2:$F58=\"x\",'Comm Plan 5'!$E2:$E58&CHAR(10),\"\"))","v":""},{"$f":"_xlfn.CONCAT(IF('Comm Plan 6'!$F2:$F58=\"x\",'Comm Plan 6'!$E2:$E58&CHAR(10),\"\"))","v":""},{"$f":"_xlfn.CONCAT(IF('Comm Plan 7'!$F2:$F58=\"x\",'Comm Plan 7'!$E2:$E58&CHAR(10),\"\"))","v":""},{"$f":"_xlfn.CONCAT(IF('Comm Plan 8'!$F2:$F58=\"x\",'Comm Plan 8'!$E2:$E58&CHAR(10),\"\"))","v":""},{"$f":"_xlfn.CONCAT(IF('Comm Plan 9'!$F2:$F58=\"x\",'Comm Plan 9'!$E2:$E58&CHAR(10),\"\"))","v":""},{"$f":"_xlfn.CONCAT(IF('Comm Plan 10'!$F2:$F58=\"x\",'Comm Plan 10'!$E2:$E58&CHAR(10),\"\"))","v":""}]
["ZIP Code\n(PLEASE ENTER VALUES BY HAND)","19136\n19152\n19149"]
["Gender","Female ",{"$f":"_xlfn.CONCAT(IF('Comm Plan 1'!$H2:$H5=\"x\",'Comm Plan 1'!$G2:$G5&CHAR(10),\"\"))","v":""},{"$f":"_xlfn.CONCAT(IF('Comm Plan 2'!$H2:$H5=\"x\",'Comm Plan 2'!$G2:$G5&CHAR(10),\"\"))","v":""},{"$f":"_xlfn.CONCAT(IF('Comm Plan 3'!$H2:$H5=\"x\",'Comm Plan 3'!$G2:$G5&CHAR(10),\"\"))","v":""},{"$f":"_xlfn.CONCAT(IF('Comm Plan 4'!$H2:$H5=\"x\",'Comm Plan 4'!$G2:$G5&CHAR(10),\"\"))","v":""},{"$f":"_xlfn.CONCAT(IF('Comm Plan 5'!$H2:$H5=\"x\",'Comm Plan 5'!$G2:$G5&CHAR(10),\"\"))","v":""},{"$f":"_xlfn.CONCAT(IF('Comm Plan 6'!$H2:$H5=\"x\",'Comm Plan 6'!$G2:$G5&CHAR(10),\"\"))","v":""},{"$f":"_xlfn.CONCAT(IF('Comm Plan 7'!$H2:$H5=\"x\",'Comm Plan 7'!$G2:$G5&CHAR(10),\"\"))","v":""},{"$f":"_xlfn.CONCAT(IF('Comm Plan 8'!$H2:$H5=\"x\",'Comm Plan 8'!$G2:$G5&CHAR(10),\"\"))","v":""},{"$f":"_xlfn.CONCAT(IF('Comm Plan 9'!$H2:$H5=\"x\",'Comm Plan 9'!$G2:$G5&CHAR(10),\"\"))","v":""},{"$f":"_xlfn.CONCAT(IF('Comm Plan 10'!$H2:$H5=\"x\",'Comm Plan 10'!$G2:$G5&CHAR(10),\"\"))","v":""}]
["Race/Ethnicity","Asian\nHispanic or Latino",{"$f":"_xlfn.CONCAT(IF('Comm Plan 1'!$J2:$J12=\"x\",'Comm Plan 1'!$I2:$I12&CHAR(10),\"\"))","v":""},{"$f":"_xlfn.CONCAT(IF('Comm Plan 2'!$J2:$J12=\"x\",'Comm Plan 2'!$I2:$I12&CHAR(10),\"\"))","v":""},{"$f":"_xlfn.CONCAT(IF('Comm Plan 3'!$J2:$J12=\"x\",'Comm Plan 3'!$I2:$I12&CHAR(10),\"\"))","v":""},{"$f":"_xlfn.CONCAT(IF('Comm Plan 4'!$J2:$J12=\"x\",'Comm Plan 4'!$I2:$I12&CHAR(10),\"\"))","v":""},{"$f":"_xlfn.CONCAT(IF('Comm Plan 5'!$J2:$J12=\"x\",'Comm Plan 5'!$I2:$I12&CHAR(10),\"\"))","v":""},{"$f":"_xlfn.CONCAT(IF('Comm Plan 6'!$J2:$J12=\"x\",'Comm Plan 6'!$I2:$I12&CHAR(10),\"\"))","v":""},{"$f":"_xlfn.CONCAT(IF('Comm Plan 7'!$J2:$J12=\"x\",'Comm Plan 7'!$I2:$I12&CHAR(10),\"\"))","v":""},{"$f":"_xlfn.CONCAT(IF('Comm Plan 8'!$J2:$J12=\"x\",'Comm Plan 8'!$I2:$I12&CHAR(10),\"\"))","v":""},{"$f":"_xlfn.CONCAT(IF('Comm Plan 9'!$J2:$J12=\"x\",'Comm Plan 9'!$I2:$I12&CHAR(10),\"\"))","v":""},{"$f":"_xlfn.CONCAT(IF('Comm Plan 10'!$J2:$J12=\"x\",'Comm Plan 10'!$I2:$I12&CHAR(10),\"\"))","v":""}]
["Academic Major","History\nEngineering",{"$f":"_xlfn.CONCAT(IF('Comm Plan 1'!$L2:$L38=\"x\",'Comm Plan 1'!$K2:$K38&CHAR(10),\"\"))","v":""},{"$f":"_xlfn.CONCAT(IF('Comm Plan 2'!$L2:$L38=\"x\",'Comm Plan 2'!$K2:$K38&CHAR(10),\"\"))","v":""},{"$f":"_xlfn.CONCAT(IF('Comm Plan 3'!$L2:$L38=\"x\",'Comm Plan 3'!$K2:$K38&CHAR(10),\"\"))","v":""},{"$f":"_xlfn.CONCAT(IF('Comm Plan 4'!$L2:$L38=\"x\",'Comm Plan 4'!$K2:$K38&CHAR(10),\"\"))","v":""},{"$f":"_xlfn.CONCAT(IF('Comm Plan 5'!$L2:$L38=\"x\",'Comm Plan 5'!$K2:$K38&CHAR(10),\"\"))","v":""},{"$f":"_xlfn.CONCAT(IF('Comm Plan 6'!$L2:$L38=\"x\",'Comm Plan 6'!$K2:$K38&CHAR(10),\"\"))","v":""},{"$f":"_xlfn.CONCAT(IF('Comm Plan 7'!$L2:$L38=\"x\",'Comm Plan 7'!$K2:$K38&CHAR(10),\"\"))","v":""},{"$f":"_xlfn.CONCAT(IF('Comm Plan 8'!$L2:$L38=\"x\",'Comm Plan 8'!$K2:$K38&CHAR(10),\"\"))","v":""},{"$f":"_xlfn.CONCAT(IF('Comm Plan 9'!$L2:$L38=\"x\",'Comm Plan 9'!$K2:$K38&CHAR(10),\"\"))","v":""},{"$f":"_xlfn.CONCAT(IF('Comm Plan 10'!$L2:$L38=\"x\",'Comm Plan 10'!$K2:$K38&CHAR(10),\"\"))","v":""}]
["HS GPA","A+ (97-100)",{"$f":"_xlfn.CONCAT(IF('Comm Plan 1'!$N2:$N14=\"x\",'Comm Plan 1'!$M2:$M14&CHAR(10),\"\"))","v":""},{"$f":"_xlfn.CONCAT(IF('Comm Plan 2'!$N2:$N14=\"x\",'Comm Plan 2'!$M2:$M14&CHAR(10),\"\"))","v":""},{"$f":"_xlfn.CONCAT(IF('Comm Plan 3'!$N2:$N14=\"x\",'Comm Plan 3'!$M2:$M14&CHAR(10),\"\"))","v":""},{"$f":"_xlfn.CONCAT(IF('Comm Plan 4'!$N2:$N14=\"x\",'Comm Plan 4'!$M2:$M14&CHAR(10),\"\"))","v":""},{"$f":"_xlfn.CONCAT(IF('Comm Plan 5'!$N2:$N14=\"x\",'Comm Plan 5'!$M2:$M14&CHAR(10),\"\"))","v":""},{"$f":"_xlfn.CONCAT(IF('Comm Plan 6'!$N2:$N14=\"x\",'Comm Plan 6'!$M2:$M14&CHAR(10),\"\"))","v":""},{"$f":"_xlfn.CONCAT(IF('Comm Plan 7'!$N2:$N14=\"x\",'Comm Plan 7'!$M2:$M14&CHAR(10),\"\"))","v":""},{"$f":"_xlfn.CONCAT(IF('Comm Plan 8'!$N2:$N14=\"x\",'Comm Plan 8'!$M2:$M14&CHAR(10),\"\"))","v":""},{"$f":"_xlfn.CONCAT(IF('Comm Plan 9'!$N2:$N14=\"x\",'Comm Plan 9'!$M2:$M14&CHAR(10),\"\"))","v":""},{"$f":"_xlfn.CONCAT(IF('Comm Plan 10'!$N2:$N14=\"x\",'Comm Plan 10'!$M2:$M14&CHAR(10),\"\"))","v":""}]
["Score Minimum",1100,{"$f":"_xlfn.CONCAT(IF('Comm Plan 1'!$P2:$P8=\"x\",'Comm Plan 1'!$O2:$O8&CHAR(10),\"\"))","v":""},{"$f":"_xlfn.CONCAT(IF('Comm Plan 2'!$P2:$P8=\"x\",'Comm Plan 2'!$O2:$O8&CHAR(10),\"\"))","v":""},{"$f":"_xlfn.CONCAT(IF('Comm Plan 3'!$P2:$P8=\"x\",'Comm Plan 3'!$O2:$O8&CHAR(10),\"\"))","v":""},{"$f":"_xlfn.CONCAT(IF('Comm Plan 4'!$P2:$P8=\"x\",'Comm Plan 4'!$O2:$O8&CHAR(10),\"\"))","v":""},{"$f":"_xlfn.CONCAT(IF('Comm Plan 5'!$P2:$P8=\"x\",'Comm Plan 5'!$O2:$O8&CHAR(10),\"\"))","v":""},{"$f":"_xlfn.CONCAT(IF('Comm Plan 6'!$P2:$P8=\"x\",'Comm Plan 6'!$O2:$O8&CHAR(10),\"\"))","v":""},{"$f":"_xlfn.CONCAT(IF('Comm Plan 7'!$P2:$P8=\"x\",'Comm Plan 7'!$O2:$O8&CHAR(10),\"\"))","v":""},{"$f":"_xlfn.CONCAT(IF('Comm Plan 8'!$P2:$P8=\"x\",'Comm Plan 8'!$O2:$O8&CHAR(10),\"\"))","v":""},{"$f":"_xlfn.CONCAT(IF('Comm Plan 9'!$P2:$P8=\"x\",'Comm Plan 9'!$O2:$O8&CHAR(10),\"\"))","v":""},{"$f":"_xlfn.CONCAT(IF('Comm Plan 10'!$P2:$P8=\"x\",'Comm Plan 10'!$O2:$O8&CHAR(10),\"\"))","v":""}]

{"sheet":"Comm Plan 1","index":4,"n_rows":58,"n_cols":16,"rows_kept":58,"cut":false,"hidden":false,"merged":[]}
["Grad","Select Grad Year ","High Challenge","Select High Challenge","State","Select State","Gender","Select Gender","RaceEthnicity","Select Race/Ethnicity","Academic Area","Select Academic Area","GPA","Select GPA","Score Minimum","Select Score Minimum"]
["2025/2026",null,"Yes",null,"Alaska",null,"Male",null,"Native American or Alaska Native",null,"Agriculture, Agriculture Operations, and Related Sciences",null,"A+ (97-100)",null,900]
["2027/2028",null,null,null,"Alabama",null,"Female",null,"Asian",null,"Architecture and Related Services",null,"A (93-96)",null,1000]
[null,null,null,null,"Arkansas",null,"Another",null,"Black or African American",null,"Area, Ethnic, Cultural, and Gender Studies",null,"A- (90-92)",null,1100]
[null,null,null,null,"American Samoa",null,"No Response",null,"Native Hawaiian or Other Pacific Islander",null,"Biological and Biomedical Sciences",null,"B+ (87-89)",null,1200]
[null,null,null,null,"Arizona",null,null,null,"White",null,"Business, Management, Marketing, and Related Support Services",null,"B (83-86)",null,1300]
[null,null,null,null,"California",null,null,null,"No Response",null,"Communication, Journalism and Related Programs",null,"B- (80-82)",null,1400]
[null,null,null,null,"Colorado",null,null,null,"Hispanic or Latino",null,"Computer and Information Sciences and Support Services",null,"C+ (77-79)",null,1500]
[null,null,null,null,"Connecticut",null,null,null,"Cuban",null,"Construction Trades",null,"C (73-76)"]
[null,null,null,null,"District of Columbia",null,null,null,"Mexican",null,"Education",null,"C- (70-72)"]
[null,null,null,null,"Delaware",null,null,null,"Puerto Rican",null,"Engineering",null,"D+ (67-69)"]
[null,null,null,null,"Florida",null,null,null,"Another Hispanic, Latino, or Spanish Origin",null,"Engineering Technologies/Technicians",null,"D (65-66)"]
[null,null,null,null,"Georgia",null,null,null,null,null,"English Language and Literature/Letters",null,"E/F (Below 65)"]
[null,null,null,null,"Guam",null,null,null,null,null,"Family and Consumer Sciences/Human Sciences",null,"No Response"]
[null,null,null,null,"Hawaii",null,null,null,null,null,"Foreign Languages and Literatures"]
[null,null,null,null,"Iowa",null,null,null,null,null,"Health Professions and Related Clinical Sciences"]
[null,null,null,null,"Idaho",null,null,null,null,null,"History"]
[null,null,null,null,"Illinois",null,null,null,null,null,"Legal Studies"]
[null,null,null,null,"Indiana",null,null,null,null,null,"Liberal Arts and Sciences, General Studies and Humanities"]
[null,null,null,null,"Kansas",null,null,null,null,null,"Library Science/Librarianship"]
[null,null,null,null,"Kentucky",null,null,null,null,null,"Mathematics and Statistics"]
[null,null,null,null,"Louisiana",null,null,null,null,null,"Mechanic and Repair Technologies/Technicians"]
[null,null,null,null,"Massachusetts",null,null,null,null,null,"Military Technologies"]
[null,null,null,null,"Maryland",null,null,null,null,null,"Multi/Interdisciplinary Studies"]
[null,null,null,null,"Maine",null,null,null,null,null,"Natural Resources and Conservation"]
[null,null,null,null,"Michigan",null,null,null,null,null,"Parks, Recreation and Leisure Studies"]
[null,null,null,null,"Minnesota",null,null,null,null,null,"Personal And Culinary Services"]
[null,null,null,null,"Missouri",null,null,null,null,null,"Philosophy and Religious Studies"]
[null,null,null,null,"Northern Mariana Islands",null,null,null,null,null,"Physical Sciences"]
[null,null,null,null,"Mississippi",null,null,null,null,null,"Psychology"]
[null,null,null,null,"Montana",null,null,null,null,null,"Public Administration and Social Service Professions"]
[null,null,null,null,"North Carolina",null,null,null,null,null,"Security and Protective Services"]
[null,null,null,null,"North Dakota",null,null,null,null,null,"Social Sciences"]
[null,null,null,null,"Nebraska",null,null,null,null,null,"Theology and Religious Vocations"]
[null,null,null,null,"New Hampshire",null,null,null,null,null,"Visual and Performing Arts"]
[null,null,null,null,"New Jersey",null,null,null,null,null,"Undecided"]
[null,null,null,null,"New Mexico",null,null,null,null,null,"Other"]
[null,null,null,null,"Nevada",null,null,null,null,null,"No Response"]
[null,null,null,null,"New York","N/A"]
[null,null,null,null,"Ohio"]
[null,null,null,null,"Oklahoma"]
[null,null,null,null,"Oregon"]
[null,null,null,null,"Pennsylvania"]
[null,null,null,null,"Puerto Rico"]
[null,null,null,null,"Rhode Island"]
[null,null,null,null,"South Carolina"]
[null,null,null,null,"South Dakota"]
[null,null,null,null,"Tennessee"]
[null,null,null,null,"Texas"]
[null,null,null,null,"US Minor Outlying Islands"]
[null,null,null,null,"Utah"]
[null,null,null,null,"Virginia"]
[null,null,null,null,"Virgin Islands"]
[null,null,null,null,"Vermont"]
[null,null,null,null,"Washington"]
[null,null,null,null,"Wisconsin"]
[null,null,null,null,"West Virginia"]
[null,null,null,null,"Wyoming"]

{"sheet":"Comm Plan 2","index":5,"n_rows":58,"n_cols":16,"rows_kept":58,"cut":false,"hidden":false,"merged":[]}
["Grad","Select Grad Year ","High Challenge","Select High Challenge","State","Select State","Gender","Select Gender","RaceEthnicity","Select Race/Ethnicity","Academic Area","Select Academic Area","GPA","Select GPA","Score Minimum","Select Score Minimum"]
["2025/2026",null,"Yes",null,"Alaska",null,"Male",null,"Native American or Alaska Native",null,"Agriculture, Agriculture Operations, and Related Sciences",null,"A+ (97-100)",null,900]
["2027/2028",null,null,null,"Alabama",null,"Female",null,"Asian",null,"Architecture and Related Services",null,"A (93-96)",null,1000]
[null,null,null,null,"Arkansas",null,"Another",null,"Black or African American",null,"Area, Ethnic, Cultural, and Gender Studies",null,"A- (90-92)",null,1100]
[null,null,null,null,"American Samoa",null,"No Response",null,"Native Hawaiian or Other Pacific Islander",null,"Biological and Biomedical Sciences",null,"B+ (87-89)",null,1200]
[null,null,null,null,"Arizona",null,null,null,"White",null,"Business, Management, Marketing, and Related Support Services",null,"B (83-86)",null,1300]
[null,null,null,null,"California",null,null,null,"No Response",null,"Communication, Journalism and Related Programs",null,"B- (80-82)",null,1400]
[null,null,null,null,"Colorado",null,null,null,"Hispanic or Latino",null,"Computer and Information Sciences and Support Services",null,"C+ (77-79)",null,1500]
[null,null,null,null,"Connecticut",null,null,null,"Cuban",null,"Construction Trades",null,"C (73-76)"]
[null,null,null,null,"District of Columbia",null,null,null,"Mexican",null,"Education",null,"C- (70-72)"]
[null,null,null,null,"Delaware",null,null,null,"Puerto Rican",null,"Engineering",null,"D+ (67-69)"]
[null,null,null,null,"Florida",null,null,null,"Another Hispanic, Latino, or Spanish Origin",null,"Engineering Technologies/Technicians",null,"D (65-66)"]
[null,null,null,null,"Georgia",null,null,null,null,null,"English Language and Literature/Letters",null,"E/F (Below 65)"]
[null,null,null,null,"Guam",null,null,null,null,null,"Family and Consumer Sciences/Human Sciences",null,"No Response"]
[null,null,null,null,"Hawaii",null,null,null,null,null,"Foreign Languages and Literatures"]
[null,null,null,null,"Iowa",null,null,null,null,null,"Health Professions and Related Clinical Sciences"]
[null,null,null,null,"Idaho",null,null,null,null,null,"History"]
[null,null,null,null,"Illinois",null,null,null,null,null,"Legal Studies"]
[null,null,null,null,"Indiana",null,null,null,null,null,"Liberal Arts and Sciences, General Studies and Humanities"]
[null,null,null,null,"Kansas",null,null,null,null,null,"Library Science/Librarianship"]
[null,null,null,null,"Kentucky",null,null,null,null,null,"Mathematics and Statistics"]
[null,null,null,null,"Louisiana",null,null,null,null,null,"Mechanic and Repair Technologies/Technicians"]
[null,null,null,null,"Massachusetts",null,null,null,null,null,"Military Technologies"]
[null,null,null,null,"Maryland",null,null,null,null,null,"Multi/Interdisciplinary Studies"]
[null,null,null,null,"Maine",null,null,null,null,null,"Natural Resources and Conservation"]
[null,null,null,null,"Michigan",null,null,null,null,null,"Parks, Recreation and Leisure Studies"]
[null,null,null,null,"Minnesota",null,null,null,null,null,"Personal And Culinary Services"]
[null,null,null,null,"Missouri",null,null,null,null,null,"Philosophy and Religious Studies"]
[null,null,null,null,"Northern Mariana Islands",null,null,null,null,null,"Physical Sciences"]
[null,null,null,null,"Mississippi",null,null,null,null,null,"Psychology"]
[null,null,null,null,"Montana",null,null,null,null,null,"Public Administration and Social Service Professions"]
[null,null,null,null,"North Carolina",null,null,null,null,null,"Security and Protective Services"]
[null,null,null,null,"North Dakota",null,null,null,null,null,"Social Sciences"]
[null,null,null,null,"Nebraska",null,null,null,null,null,"Theology and Religious Vocations"]
[null,null,null,null,"New Hampshire",null,null,null,null,null,"Visual and Performing Arts"]
[null,null,null,null,"New Jersey",null,null,null,null,null,"Undecided"]
[null,null,null,null,"New Mexico",null,null,null,null,null,"Other"]
[null,null,null,null,"Nevada",null,null,null,null,null,"No Response"]
[null,null,null,null,"New York","N/A"]
[null,null,null,null,"Ohio"]
[null,null,null,null,"Oklahoma"]
[null,null,null,null,"Oregon"]
[null,null,null,null,"Pennsylvania"]
[null,null,null,null,"Puerto Rico"]
[null,null,null,null,"Rhode Island"]
[null,null,null,null,"South Carolina"]
[null,null,null,null,"South Dakota"]
[null,null,null,null,"Tennessee"]
[null,null,null,null,"Texas"]
[null,null,null,null,"US Minor Outlying Islands"]
[null,null,null,null,"Utah"]
[null,null,null,null,"Virginia"]
[null,null,null,null,"Virgin Islands"]
[null,null,null,null,"Vermont"]
[null,null,null,null,"Washington"]
[null,null,null,null,"Wisconsin"]
[null,null,null,null,"West Virginia"]
[null,null,null,null,"Wyoming"]

{"sheet":"Comm Plan 3","index":6,"n_rows":58,"n_cols":16,"rows_kept":58,"cut":false,"hidden":false,"merged":[]}
["Grad","Select Grad Year ","High Challenge","Select High Challenge","State","Select State","Gender","Select Gender","RaceEthnicity","Select Race/Ethnicity","Academic Area","Select Academic Area","GPA","Select GPA","Score Minimum","Select Score Minimum"]
["2025/2026",null,"Yes",null,"Alaska",null,"Male",null,"Native American or Alaska Native",null,"Agriculture, Agriculture Operations, and Related Sciences",null,"A+ (97-100)",null,900]
["2027/2028",null,null,null,"Alabama",null,"Female",null,"Asian",null,"Architecture and Related Services",null,"A (93-96)",null,1000]
[null,null,null,null,"Arkansas",null,"Another",null,"Black or African American",null,"Area, Ethnic, Cultural, and Gender Studies",null,"A- (90-92)",null,1100]
[null,null,null,null,"American Samoa",null,"No Response",null,"Native Hawaiian or Other Pacific Islander",null,"Biological and Biomedical Sciences",null,"B+ (87-89)",null,1200]
[null,null,null,null,"Arizona",null,null,null,"White",null,"Business, Management, Marketing, and Related Support Services",null,"B (83-86)",null,1300]
[null,null,null,null,"California",null,null,null,"No Response",null,"Communication, Journalism and Related Programs",null,"B- (80-82)",null,1400]
[null,null,null,null,"Colorado",null,null,null,"Hispanic or Latino",null,"Computer and Information Sciences and Support Services",null,"C+ (77-79)",null,1500]
[null,null,null,null,"Connecticut",null,null,null,"Cuban",null,"Construction Trades",null,"C (73-76)"]
[null,null,null,null,"District of Columbia",null,null,null,"Mexican",null,"Education",null,"C- (70-72)"]
[null,null,null,null,"Delaware",null,null,null,"Puerto Rican",null,"Engineering",null,"D+ (67-69)"]
[null,null,null,null,"Florida",null,null,null,"Another Hispanic, Latino, or Spanish Origin",null,"Engineering Technologies/Technicians",null,"D (65-66)"]
[null,null,null,null,"Georgia",null,null,null,null,null,"English Language and Literature/Letters",null,"E/F (Below 65)"]
[null,null,null,null,"Guam",null,null,null,null,null,"Family and Consumer Sciences/Human Sciences",null,"No Response"]
[null,null,null,null,"Hawaii",null,null,null,null,null,"Foreign Languages and Literatures"]
[null,null,null,null,"Iowa",null,null,null,null,null,"Health Professions and Related Clinical Sciences"]
[null,null,null,null,"Idaho",null,null,null,null,null,"History"]
[null,null,null,null,"Illinois",null,null,null,null,null,"Legal Studies"]
[null,null,null,null,"Indiana",null,null,null,null,null,"Liberal Arts and Sciences, General Studies and Humanities"]
[null,null,null,null,"Kansas",null,null,null,null,null,"Library Science/Librarianship"]
[null,null,null,null,"Kentucky",null,null,null,null,null,"Mathematics and Statistics"]
[null,null,null,null,"Louisiana",null,null,null,null,null,"Mechanic and Repair Technologies/Technicians"]
[null,null,null,null,"Massachusetts",null,null,null,null,null,"Military Technologies"]
[null,null,null,null,"Maryland",null,null,null,null,null,"Multi/Interdisciplinary Studies"]
[null,null,null,null,"Maine",null,null,null,null,null,"Natural Resources and Conservation"]
[null,null,null,null,"Michigan",null,null,null,null,null,"Parks, Recreation and Leisure Studies"]
[null,null,null,null,"Minnesota",null,null,null,null,null,"Personal And Culinary Services"]
[null,null,null,null,"Missouri",null,null,null,null,null,"Philosophy and Religious Studies"]
[null,null,null,null,"Northern Mariana Islands",null,null,null,null,null,"Physical Sciences"]
[null,null,null,null,"Mississippi",null,null,null,null,null,"Psychology"]
[null,null,null,null,"Montana",null,null,null,null,null,"Public Administration and Social Service Professions"]
[null,null,null,null,"North Carolina",null,null,null,null,null,"Security and Protective Services"]
[null,null,null,null,"North Dakota",null,null,null,null,null,"Social Sciences"]
[null,null,null,null,"Nebraska",null,null,null,null,null,"Theology and Religious Vocations"]
[null,null,null,null,"New Hampshire",null,null,null,null,null,"Visual and Performing Arts"]
[null,null,null,null,"New Jersey",null,null,null,null,null,"Undecided"]
[null,null,null,null,"New Mexico",null,null,null,null,null,"Other"]
[null,null,null,null,"Nevada",null,null,null,null,null,"No Response"]
[null,null,null,null,"New York","N/A"]
[null,null,null,null,"Ohio"]
[null,null,null,null,"Oklahoma"]
[null,null,null,null,"Oregon"]
[null,null,null,null,"Pennsylvania"]
[null,null,null,null,"Puerto Rico"]
[null,null,null,null,"Rhode Island"]
[null,null,null,null,"South Carolina"]
[null,null,null,null,"South Dakota"]
[null,null,null,null,"Tennessee"]
[null,null,null,null,"Texas"]
[null,null,null,null,"US Minor Outlying Islands"]
[null,null,null,null,"Utah"]
[null,null,null,null,"Virginia"]
[null,null,null,null,"Virgin Islands"]
[null,null,null,null,"Vermont"]
[null,null,null,null,"Washington"]
[null,null,null,null,"Wisconsin"]
[null,null,null,null,"West Virginia"]
[null,null,null,null,"Wyoming"]

{"sheet":"Comm Plan 4","index":7,"n_rows":58,"n_cols":16,"rows_kept":58,"cut":false,"hidden":false,"merged":[]}
["Grad","Select Grad Year ","High Challenge","Select High Challenge","State","Select State","Gender","Select Gender","RaceEthnicity","Select Race/Ethnicity","Academic Area","Select Academic Area","GPA","Select GPA","Score Minimum","Select Score Minimum"]
["2025/2026",null,"Yes",null,"Alaska",null,"Male",null,"Native American or Alaska Native",null,"Agriculture, Agriculture Operations, and Related Sciences",null,"A+ (97-100)",null,900]
["2027/2028",null,null,null,"Alabama",null,"Female",null,"Asian",null,"Architecture and Related Services",null,"A (93-96)",null,1000]
[null,null,null,null,"Arkansas",null,"Another",null,"Black or African American",null,"Area, Ethnic, Cultural, and Gender Studies",null,"A- (90-92)",null,1100]
[null,null,null,null,"American Samoa",null,"No Response",null,"Native Hawaiian or Other Pacific Islander",null,"Biological and Biomedical Sciences",null,"B+ (87-89)",null,1200]
[null,null,null,null,"Arizona",null,null,null,"White",null,"Business, Management, Marketing, and Related Support Services",null,"B (83-86)",null,1300]
[null,null,null,null,"California",null,null,null,"No Response",null,"Communication, Journalism and Related Programs",null,"B- (80-82)",null,1400]
[null,null,null,null,"Colorado",null,null,null,"Hispanic or Latino",null,"Computer and Information Sciences and Support Services",null,"C+ (77-79)",null,1500]
[null,null,null,null,"Connecticut",null,null,null,"Cuban",null,"Construction Trades",null,"C (73-76)"]
[null,null,null,null,"District of Columbia",null,null,null,"Mexican",null,"Education",null,"C- (70-72)"]
[null,null,null,null,"Delaware",null,null,null,"Puerto Rican",null,"Engineering",null,"D+ (67-69)"]
[null,null,null,null,"Florida",null,null,null,"Another Hispanic, Latino, or Spanish Origin",null,"Engineering Technologies/Technicians",null,"D (65-66)"]
[null,null,null,null,"Georgia",null,null,null,null,null,"English Language and Literature/Letters",null,"E/F (Below 65)"]
[null,null,null,null,"Guam",null,null,null,null,null,"Family and Consumer Sciences/Human Sciences",null,"No Response"]
[null,null,null,null,"Hawaii",null,null,null,null,null,"Foreign Languages and Literatures"]
[null,null,null,null,"Iowa",null,null,null,null,null,"Health Professions and Related Clinical Sciences"]
[null,null,null,null,"Idaho",null,null,null,null,null,"History"]
[null,null,null,null,"Illinois",null,null,null,null,null,"Legal Studies"]
[null,null,null,null,"Indiana",null,null,null,null,null,"Liberal Arts and Sciences, General Studies and Humanities"]
[null,null,null,null,"Kansas",null,null,null,null,null,"Library Science/Librarianship"]
[null,null,null,null,"Kentucky",null,null,null,null,null,"Mathematics and Statistics"]
[null,null,null,null,"Louisiana",null,null,null,null,null,"Mechanic and Repair Technologies/Technicians"]
[null,null,null,null,"Massachusetts",null,null,null,null,null,"Military Technologies"]
[null,null,null,null,"Maryland",null,null,null,null,null,"Multi/Interdisciplinary Studies"]
[null,null,null,null,"Maine",null,null,null,null,null,"Natural Resources and Conservation"]
[null,null,null,null,"Michigan",null,null,null,null,null,"Parks, Recreation and Leisure Studies"]
[null,null,null,null,"Minnesota",null,null,null,null,null,"Personal And Culinary Services"]
[null,null,null,null,"Missouri",null,null,null,null,null,"Philosophy and Religious Studies"]
[null,null,null,null,"Northern Mariana Islands",null,null,null,null,null,"Physical Sciences"]
[null,null,null,null,"Mississippi",null,null,null,null,null,"Psychology"]
[null,null,null,null,"Montana",null,null,null,null,null,"Public Administration and Social Service Professions"]
[null,null,null,null,"North Carolina",null,null,null,null,null,"Security and Protective Services"]
[null,null,null,null,"North Dakota",null,null,null,null,null,"Social Sciences"]
[null,null,null,null,"Nebraska",null,null,null,null,null,"Theology and Religious Vocations"]
[null,null,null,null,"New Hampshire",null,null,null,null,null,"Visual and Performing Arts"]
[null,null,null,null,"New Jersey",null,null,null,null,null,"Undecided"]
[null,null,null,null,"New Mexico",null,null,null,null,null,"Other"]
[null,null,null,null,"Nevada",null,null,null,null,null,"No Response"]
[null,null,null,null,"New York","N/A"]
[null,null,null,null,"Ohio"]
[null,null,null,null,"Oklahoma"]
[null,null,null,null,"Oregon"]
[null,null,null,null,"Pennsylvania"]
[null,null,null,null,"Puerto Rico"]
[null,null,null,null,"Rhode Island"]
[null,null,null,null,"South Carolina"]
[null,null,null,null,"South Dakota"]
[null,null,null,null,"Tennessee"]
[null,null,null,null,"Texas"]
[null,null,null,null,"US Minor Outlying Islands"]
[null,null,null,null,"Utah"]
[null,null,null,null,"Virginia"]
[null,null,null,null,"Virgin Islands"]
[null,null,null,null,"Vermont"]
[null,null,null,null,"Washington"]
[null,null,null,null,"Wisconsin"]
[null,null,null,null,"West Virginia"]
[null,null,null,null,"Wyoming"]

{"sheet":"Comm Plan 5","index":8,"n_rows":58,"n_cols":16,"rows_kept":58,"cut":false,"hidden":false,"merged":[]}
["Grad","Select Grad Year ","High Challenge","Select High Challenge","State","Select State","Gender","Select Gender","RaceEthnicity","Select Race/Ethnicity","Academic Area","Select Academic Area","GPA","Select GPA","Score Minimum","Select Score Minimum"]
["2025/2026",null,"Yes",null,"Alaska",null,"Male",null,"Native American or Alaska Native",null,"Agriculture, Agriculture Operations, and Related Sciences",null,"A+ (97-100)",null,900]
["2027/2028",null,null,null,"Alabama",null,"Female",null,"Asian",null,"Architecture and Related Services",null,"A (93-96)",null,1000]
[null,null,null,null,"Arkansas",null,"Another",null,"Black or African American",null,"Area, Ethnic, Cultural, and Gender Studies",null,"A- (90-92)",null,1100]
[null,null,null,null,"American Samoa",null,"No Response",null,"Native Hawaiian or Other Pacific Islander",null,"Biological and Biomedical Sciences",null,"B+ (87-89)",null,1200]
[null,null,null,null,"Arizona",null,null,null,"White",null,"Business, Management, Marketing, and Related Support Services",null,"B (83-86)",null,1300]
[null,null,null,null,"California",null,null,null,"No Response",null,"Communication, Journalism and Related Programs",null,"B- (80-82)",null,1400]
[null,null,null,null,"Colorado",null,null,null,"Hispanic or Latino",null,"Computer and Information Sciences and Support Services",null,"C+ (77-79)",null,1500]
[null,null,null,null,"Connecticut",null,null,null,"Cuban",null,"Construction Trades",null,"C (73-76)"]
[null,null,null,null,"District of Columbia",null,null,null,"Mexican",null,"Education",null,"C- (70-72)"]
[null,null,null,null,"Delaware",null,null,null,"Puerto Rican",null,"Engineering",null,"D+ (67-69)"]
[null,null,null,null,"Florida",null,null,null,"Another Hispanic, Latino, or Spanish Origin",null,"Engineering Technologies/Technicians",null,"D (65-66)"]
[null,null,null,null,"Georgia",null,null,null,null,null,"English Language and Literature/Letters",null,"E/F (Below 65)"]
[null,null,null,null,"Guam",null,null,null,null,null,"Family and Consumer Sciences/Human Sciences",null,"No Response"]
[null,null,null,null,"Hawaii",null,null,null,null,null,"Foreign Languages and Literatures"]
[null,null,null,null,"Iowa",null,null,null,null,null,"Health Professions and Related Clinical Sciences"]
[null,null,null,null,"Idaho",null,null,null,null,null,"History"]
[null,null,null,null,"Illinois",null,null,null,null,null,"Legal Studies"]
[null,null,null,null,"Indiana",null,null,null,null,null,"Liberal Arts and Sciences, General Studies and Humanities"]
[null,null,null,null,"Kansas",null,null,null,null,null,"Library Science/Librarianship"]
[null,null,null,null,"Kentucky",null,null,null,null,null,"Mathematics and Statistics"]
[null,null,null,null,"Louisiana",null,null,null,null,null,"Mechanic and Repair Technologies/Technicians"]
[null,null,null,null,"Massachusetts",null,null,null,null,null,"Military Technologies"]
[null,null,null,null,"Maryland",null,null,null,null,null,"Multi/Interdisciplinary Studies"]
[null,null,null,null,"Maine",null,null,null,null,null,"Natural Resources and Conservation"]
[null,null,null,null,"Michigan",null,null,null,null,null,"Parks, Recreation and Leisure Studies"]
[null,null,null,null,"Minnesota",null,null,null,null,null,"Personal And Culinary Services"]
[null,null,null,null,"Missouri",null,null,null,null,null,"Philosophy and Religious Studies"]
[null,null,null,null,"Northern Mariana Islands",null,null,null,null,null,"Physical Sciences"]
[null,null,null,null,"Mississippi",null,null,null,null,null,"Psychology"]
[null,null,null,null,"Montana",null,null,null,null,null,"Public Administration and Social Service Professions"]
[null,null,null,null,"North Carolina",null,null,null,null,null,"Security and Protective Services"]
[null,null,null,null,"North Dakota",null,null,null,null,null,"Social Sciences"]
[null,null,null,null,"Nebraska",null,null,null,null,null,"Theology and Religious Vocations"]
[null,null,null,null,"New Hampshire",null,null,null,null,null,"Visual and Performing Arts"]
[null,null,null,null,"New Jersey",null,null,null,null,null,"Undecided"]
[null,null,null,null,"New Mexico",null,null,null,null,null,"Other"]
[null,null,null,null,"Nevada",null,null,null,null,null,"No Response"]
[null,null,null,null,"New York","N/A"]
[null,null,null,null,"Ohio"]
[null,null,null,null,"Oklahoma"]
[null,null,null,null,"Oregon"]
[null,null,null,null,"Pennsylvania"]
[null,null,null,null,"Puerto Rico"]
[null,null,null,null,"Rhode Island"]
[null,null,null,null,"South Carolina"]
[null,null,null,null,"South Dakota"]
[null,null,null,null,"Tennessee"]
[null,null,null,null,"Texas"]
[null,null,null,null,"US Minor Outlying Islands"]
[null,null,null,null,"Utah"]
[null,null,null,null,"Virginia"]
[null,null,null,null,"Virgin Islands"]
[null,null,null,null,"Vermont"]
[null,null,null,null,"Washington"]
[null,null,null,null,"Wisconsin"]
[null,null,null,null,"West Virginia"]
[null,null,null,null,"Wyoming"]

{"sheet":"Comm Plan 6","index":9,"n_rows":58,"n_cols":16,"rows_kept":58,"cut":false,"hidden":false,"merged":[]}
["Grad","Select Grad Year ","High Challenge","Select High Challenge","State","Select State","Gender","Select Gender","RaceEthnicity","Select Race/Ethnicity","Academic Area","Select Academic Area","GPA","Select GPA","Score Minimum","Select Score Minimum"]
["2025/2026",null,"Yes",null,"Alaska",null,"Male",null,"Native American or Alaska Native",null,"Agriculture, Agriculture Operations, and Related Sciences",null,"A+ (97-100)",null,900]
["2027/2028",null,null,null,"Alabama",null,"Female",null,"Asian",null,"Architecture and Related Services",null,"A (93-96)",null,1000]
[null,null,null,null,"Arkansas",null,"Another",null,"Black or African American",null,"Area, Ethnic, Cultural, and Gender Studies",null,"A- (90-92)",null,1100]
[null,null,null,null,"American Samoa",null,"No Response",null,"Native Hawaiian or Other Pacific Islander",null,"Biological and Biomedical Sciences",null,"B+ (87-89)",null,1200]
[null,null,null,null,"Arizona",null,null,null,"White",null,"Business, Management, Marketing, and Related Support Services",null,"B (83-86)",null,1300]
[null,null,null,null,"California",null,null,null,"No Response",null,"Communication, Journalism and Related Programs",null,"B- (80-82)",null,1400]
[null,null,null,null,"Colorado",null,null,null,"Hispanic or Latino",null,"Computer and Information Sciences and Support Services",null,"C+ (77-79)",null,1500]
[null,null,null,null,"Connecticut",null,null,null,"Cuban",null,"Construction Trades",null,"C (73-76)"]
[null,null,null,null,"District of Columbia",null,null,null,"Mexican",null,"Education",null,"C- (70-72)"]
[null,null,null,null,"Delaware",null,null,null,"Puerto Rican",null,"Engineering",null,"D+ (67-69)"]
[null,null,null,null,"Florida",null,null,null,"Another Hispanic, Latino, or Spanish Origin",null,"Engineering Technologies/Technicians",null,"D (65-66)"]
[null,null,null,null,"Georgia",null,null,null,null,null,"English Language and Literature/Letters",null,"E/F (Below 65)"]
[null,null,null,null,"Guam",null,null,null,null,null,"Family and Consumer Sciences/Human Sciences",null,"No Response"]
[null,null,null,null,"Hawaii",null,null,null,null,null,"Foreign Languages and Literatures"]
[null,null,null,null,"Iowa",null,null,null,null,null,"Health Professions and Related Clinical Sciences"]
[null,null,null,null,"Idaho",null,null,null,null,null,"History"]
[null,null,null,null,"Illinois",null,null,null,null,null,"Legal Studies"]
[null,null,null,null,"Indiana",null,null,null,null,null,"Liberal Arts and Sciences, General Studies and Humanities"]
[null,null,null,null,"Kansas",null,null,null,null,null,"Library Science/Librarianship"]
[null,null,null,null,"Kentucky",null,null,null,null,null,"Mathematics and Statistics"]
[null,null,null,null,"Louisiana",null,null,null,null,null,"Mechanic and Repair Technologies/Technicians"]
[null,null,null,null,"Massachusetts",null,null,null,null,null,"Military Technologies"]
[null,null,null,null,"Maryland",null,null,null,null,null,"Multi/Interdisciplinary Studies"]
[null,null,null,null,"Maine",null,null,null,null,null,"Natural Resources and Conservation"]
[null,null,null,null,"Michigan",null,null,null,null,null,"Parks, Recreation and Leisure Studies"]
[null,null,null,null,"Minnesota",null,null,null,null,null,"Personal And Culinary Services"]
[null,null,null,null,"Missouri",null,null,null,null,null,"Philosophy and Religious Studies"]
[null,null,null,null,"Northern Mariana Islands",null,null,null,null,null,"Physical Sciences"]
[null,null,null,null,"Mississippi",null,null,null,null,null,"Psychology"]
[null,null,null,null,"Montana",null,null,null,null,null,"Public Administration and Social Service Professions"]
[null,null,null,null,"North Carolina",null,null,null,null,null,"Security and Protective Services"]
[null,null,null,null,"North Dakota",null,null,null,null,null,"Social Sciences"]
[null,null,null,null,"Nebraska",null,null,null,null,null,"Theology and Religious Vocations"]
[null,null,null,null,"New Hampshire",null,null,null,null,null,"Visual and Performing Arts"]
[null,null,null,null,"New Jersey",null,null,null,null,null,"Undecided"]
[null,null,null,null,"New Mexico",null,null,null,null,null,"Other"]
[null,null,null,null,"Nevada",null,null,null,null,null,"No Response"]
[null,null,null,null,"New York","N/A"]
[null,null,null,null,"Ohio"]
[null,null,null,null,"Oklahoma"]
[null,null,null,null,"Oregon"]
[null,null,null,null,"Pennsylvania"]
[null,null,null,null,"Puerto Rico"]
[null,null,null,null,"Rhode Island"]
[null,null,null,null,"South Carolina"]
[null,null,null,null,"South Dakota"]
[null,null,null,null,"Tennessee"]
[null,null,null,null,"Texas"]
[null,null,null,null,"US Minor Outlying Islands"]
[null,null,null,null,"Utah"]
[null,null,null,null,"Virginia"]
[null,null,null,null,"Virgin Islands"]
[null,null,null,null,"Vermont"]
[null,null,null,null,"Washington"]
[null,null,null,null,"Wisconsin"]
[null,null,null,null,"West Virginia"]
[null,null,null,null,"Wyoming"]

{"sheet":"Comm Plan 7","index":10,"n_rows":58,"n_cols":16,"rows_kept":58,"cut":false,"hidden":false,"merged":[]}
["Grad","Select Grad Year ","High Challenge","Select High Challenge","State","Select State","Gender","Select Gender","RaceEthnicity","Select Race/Ethnicity","Academic Area","Select Academic Area","GPA","Select GPA","Score Minimum","Select Score Minimum"]
["2025/2026",null,"Yes",null,"Alaska",null,"Male",null,"Native American or Alaska Native",null,"Agriculture, Agriculture Operations, and Related Sciences",null,"A+ (97-100)",null,900]
["2027/2028",null,null,null,"Alabama",null,"Female",null,"Asian",null,"Architecture and Related Services",null,"A (93-96)",null,1000]
[null,null,null,null,"Arkansas",null,"Another",null,"Black or African American",null,"Area, Ethnic, Cultural, and Gender Studies",null,"A- (90-92)",null,1100]
[null,null,null,null,"American Samoa",null,"No Response",null,"Native Hawaiian or Other Pacific Islander",null,"Biological and Biomedical Sciences",null,"B+ (87-89)",null,1200]
[null,null,null,null,"Arizona",null,null,null,"White",null,"Business, Management, Marketing, and Related Support Services",null,"B (83-86)",null,1300]
[null,null,null,null,"California",null,null,null,"No Response",null,"Communication, Journalism and Related Programs",null,"B- (80-82)",null,1400]
[null,null,null,null,"Colorado",null,null,null,"Hispanic or Latino",null,"Computer and Information Sciences and Support Services",null,"C+ (77-79)",null,1500]
[null,null,null,null,"Connecticut",null,null,null,"Cuban",null,"Construction Trades",null,"C (73-76)"]
[null,null,null,null,"District of Columbia",null,null,null,"Mexican",null,"Education",null,"C- (70-72)"]
[null,null,null,null,"Delaware",null,null,null,"Puerto Rican",null,"Engineering",null,"D+ (67-69)"]
[null,null,null,null,"Florida",null,null,null,"Another Hispanic, Latino, or Spanish Origin",null,"Engineering Technologies/Technicians",null,"D (65-66)"]
[null,null,null,null,"Georgia",null,null,null,null,null,"English Language and Literature/Letters",null,"E/F (Below 65)"]
[null,null,null,null,"Guam",null,null,null,null,null,"Family and Consumer Sciences/Human Sciences",null,"No Response"]
[null,null,null,null,"Hawaii",null,null,null,null,null,"Foreign Languages and Literatures"]
[null,null,null,null,"Iowa",null,null,null,null,null,"Health Professions and Related Clinical Sciences"]
[null,null,null,null,"Idaho",null,null,null,null,null,"History"]
[null,null,null,null,"Illinois",null,null,null,null,null,"Legal Studies"]
[null,null,null,null,"Indiana",null,null,null,null,null,"Liberal Arts and Sciences, General Studies and Humanities"]
[null,null,null,null,"Kansas",null,null,null,null,null,"Library Science/Librarianship"]
[null,null,null,null,"Kentucky",null,null,null,null,null,"Mathematics and Statistics"]
[null,null,null,null,"Louisiana",null,null,null,null,null,"Mechanic and Repair Technologies/Technicians"]
[null,null,null,null,"Massachusetts",null,null,null,null,null,"Military Technologies"]
[null,null,null,null,"Maryland",null,null,null,null,null,"Multi/Interdisciplinary Studies"]
[null,null,null,null,"Maine",null,null,null,null,null,"Natural Resources and Conservation"]
[null,null,null,null,"Michigan",null,null,null,null,null,"Parks, Recreation and Leisure Studies"]
[null,null,null,null,"Minnesota",null,null,null,null,null,"Personal And Culinary Services"]
[null,null,null,null,"Missouri",null,null,null,null,null,"Philosophy and Religious Studies"]
[null,null,null,null,"Northern Mariana Islands",null,null,null,null,null,"Physical Sciences"]
[null,null,null,null,"Mississippi",null,null,null,null,null,"Psychology"]
[null,null,null,null,"Montana",null,null,null,null,null,"Public Administration and Social Service Professions"]
[null,null,null,null,"North Carolina",null,null,null,null,null,"Security and Protective Services"]
[null,null,null,null,"North Dakota",null,null,null,null,null,"Social Sciences"]
[null,null,null,null,"Nebraska",null,null,null,null,null,"Theology and Religious Vocations"]
[null,null,null,null,"New Hampshire",null,null,null,null,null,"Visual and Performing Arts"]
[null,null,null,null,"New Jersey",null,null,null,null,null,"Undecided"]
[null,null,null,null,"New Mexico",null,null,null,null,null,"Other"]
[null,null,null,null,"Nevada",null,null,null,null,null,"No Response"]
[null,null,null,null,"New York","N/A"]
[null,null,null,null,"Ohio"]
[null,null,null,null,"Oklahoma"]
[null,null,null,null,"Oregon"]
[null,null,null,null,"Pennsylvania"]
[null,null,null,null,"Puerto Rico"]
[null,null,null,null,"Rhode Island"]
[null,null,null,null,"South Carolina"]
[null,null,null,null,"South Dakota"]
[null,null,null,null,"Tennessee"]
[null,null,null,null,"Texas"]
[null,null,null,null,"US Minor Outlying Islands"]
[null,null,null,null,"Utah"]
[null,null,null,null,"Virginia"]
[null,null,null,null,"Virgin Islands"]
[null,null,null,null,"Vermont"]
[null,null,null,null,"Washington"]
[null,null,null,null,"Wisconsin"]
[null,null,null,null,"West Virginia"]
[null,null,null,null,"Wyoming"]

{"sheet":"Comm Plan 8","index":11,"n_rows":58,"n_cols":16,"rows_kept":58,"cut":false,"hidden":false,"merged":[]}
["Grad","Select Grad Year ","High Challenge","Select High Challenge","State","Select State","Gender","Select Gender","RaceEthnicity","Select Race/Ethnicity","Academic Area","Select Academic Area","GPA","Select GPA","Score Minimum","Select Score Minimum"]
["2025/2026",null,"Yes",null,"Alaska",null,"Male",null,"Native American or Alaska Native",null,"Agriculture, Agriculture Operations, and Related Sciences",null,"A+ (97-100)",null,900]
["2027/2028",null,null,null,"Alabama",null,"Female",null,"Asian",null,"Architecture and Related Services",null,"A (93-96)",null,1000]
[null,null,null,null,"Arkansas",null,"Another",null,"Black or African American",null,"Area, Ethnic, Cultural, and Gender Studies",null,"A- (90-92)",null,1100]
[null,null,null,null,"American Samoa",null,"No Response",null,"Native Hawaiian or Other Pacific Islander",null,"Biological and Biomedical Sciences",null,"B+ (87-89)",null,1200]
[null,null,null,null,"Arizona",null,null,null,"White",null,"Business, Management, Marketing, and Related Support Services",null,"B (83-86)",null,1300]
[null,null,null,null,"California",null,null,null,"No Response",null,"Communication, Journalism and Related Programs",null,"B- (80-82)",null,1400]
[null,null,null,null,"Colorado",null,null,null,"Hispanic or Latino",null,"Computer and Information Sciences and Support Services",null,"C+ (77-79)",null,1500]
[null,null,null,null,"Connecticut",null,null,null,"Cuban",null,"Construction Trades",null,"C (73-76)"]
[null,null,null,null,"District of Columbia",null,null,null,"Mexican",null,"Education",null,"C- (70-72)"]
[null,null,null,null,"Delaware",null,null,null,"Puerto Rican",null,"Engineering",null,"D+ (67-69)"]
[null,null,null,null,"Florida",null,null,null,"Another Hispanic, Latino, or Spanish Origin",null,"Engineering Technologies/Technicians",null,"D (65-66)"]
[null,null,null,null,"Georgia",null,null,null,null,null,"English Language and Literature/Letters",null,"E/F (Below 65)"]
[null,null,null,null,"Guam",null,null,null,null,null,"Family and Consumer Sciences/Human Sciences",null,"No Response"]
[null,null,null,null,"Hawaii",null,null,null,null,null,"Foreign Languages and Literatures"]
[null,null,null,null,"Iowa",null,null,null,null,null,"Health Professions and Related Clinical Sciences"]
[null,null,null,null,"Idaho",null,null,null,null,null,"History"]
[null,null,null,null,"Illinois",null,null,null,null,null,"Legal Studies"]
[null,null,null,null,"Indiana",null,null,null,null,null,"Liberal Arts and Sciences, General Studies and Humanities"]
[null,null,null,null,"Kansas",null,null,null,null,null,"Library Science/Librarianship"]
[null,null,null,null,"Kentucky",null,null,null,null,null,"Mathematics and Statistics"]
[null,null,null,null,"Louisiana",null,null,null,null,null,"Mechanic and Repair Technologies/Technicians"]
[null,null,null,null,"Massachusetts",null,null,null,null,null,"Military Technologies"]
[null,null,null,null,"Maryland",null,null,null,null,null,"Multi/Interdisciplinary Studies"]
[null,null,null,null,"Maine",null,null,null,null,null,"Natural Resources and Conservation"]
[null,null,null,null,"Michigan",null,null,null,null,null,"Parks, Recreation and Leisure Studies"]
[null,null,null,null,"Minnesota",null,null,null,null,null,"Personal And Culinary Services"]
[null,null,null,null,"Missouri",null,null,null,null,null,"Philosophy and Religious Studies"]
[null,null,null,null,"Northern Mariana Islands",null,null,null,null,null,"Physical Sciences"]
[null,null,null,null,"Mississippi",null,null,null,null,null,"Psychology"]
[null,null,null,null,"Montana",null,null,null,null,null,"Public Administration and Social Service Professions"]
[null,null,null,null,"North Carolina",null,null,null,null,null,"Security and Protective Services"]
[null,null,null,null,"North Dakota",null,null,null,null,null,"Social Sciences"]
[null,null,null,null,"Nebraska",null,null,null,null,null,"Theology and Religious Vocations"]
[null,null,null,null,"New Hampshire",null,null,null,null,null,"Visual and Performing Arts"]
[null,null,null,null,"New Jersey",null,null,null,null,null,"Undecided"]
[null,null,null,null,"New Mexico",null,null,null,null,null,"Other"]
[null,null,null,null,"Nevada",null,null,null,null,null,"No Response"]
[null,null,null,null,"New York","N/A"]
[null,null,null,null,"Ohio"]
[null,null,null,null,"Oklahoma"]
[null,null,null,null,"Oregon"]
[null,null,null,null,"Pennsylvania"]
[null,null,null,null,"Puerto Rico"]
[null,null,null,null,"Rhode Island"]
[null,null,null,null,"South Carolina"]
[null,null,null,null,"South Dakota"]
[null,null,null,null,"Tennessee"]
[null,null,null,null,"Texas"]
[null,null,null,null,"US Minor Outlying Islands"]
[null,null,null,null,"Utah"]
[null,null,null,null,"Virginia"]
[null,null,null,null,"Virgin Islands"]
[null,null,null,null,"Vermont"]
[null,null,null,null,"Washington"]
[null,null,null,null,"Wisconsin"]
[null,null,null,null,"West Virginia"]
[null,null,null,null,"Wyoming"]

{"sheet":"Comm Plan 9","index":12,"n_rows":58,"n_cols":16,"rows_kept":58,"cut":false,"hidden":false,"merged":[]}
["Grad","Select Grad Year ","High Challenge","Select High Challenge","State","Select State","Gender","Select Gender","RaceEthnicity","Select Race/Ethnicity","Academic Area","Select Academic Area","GPA","Select GPA","Score Minimum","Select Score Minimum"]
["2025/2026",null,"Yes",null,"Alaska",null,"Male",null,"Native American or Alaska Native",null,"Agriculture, Agriculture Operations, and Related Sciences",null,"A+ (97-100)",null,900]
["2027/2028",null,null,null,"Alabama",null,"Female",null,"Asian",null,"Architecture and Related Services",null,"A (93-96)",null,1000]
[null,null,null,null,"Arkansas",null,"Another",null,"Black or African American",null,"Area, Ethnic, Cultural, and Gender Studies",null,"A- (90-92)",null,1100]
[null,null,null,null,"American Samoa",null,"No Response",null,"Native Hawaiian or Other Pacific Islander",null,"Biological and Biomedical Sciences",null,"B+ (87-89)",null,1200]
[null,null,null,null,"Arizona",null,null,null,"White",null,"Business, Management, Marketing, and Related Support Services",null,"B (83-86)",null,1300]
[null,null,null,null,"California",null,null,null,"No Response",null,"Communication, Journalism and Related Programs",null,"B- (80-82)",null,1400]
[null,null,null,null,"Colorado",null,null,null,"Hispanic or Latino",null,"Computer and Information Sciences and Support Services",null,"C+ (77-79)",null,1500]
[null,null,null,null,"Connecticut",null,null,null,"Cuban",null,"Construction Trades",null,"C (73-76)"]
[null,null,null,null,"District of Columbia",null,null,null,"Mexican",null,"Education",null,"C- (70-72)"]
[null,null,null,null,"Delaware",null,null,null,"Puerto Rican",null,"Engineering",null,"D+ (67-69)"]
[null,null,null,null,"Florida",null,null,null,"Another Hispanic, Latino, or Spanish Origin",null,"Engineering Technologies/Technicians",null,"D (65-66)"]
[null,null,null,null,"Georgia",null,null,null,null,null,"English Language and Literature/Letters",null,"E/F (Below 65)"]
[null,null,null,null,"Guam",null,null,null,null,null,"Family and Consumer Sciences/Human Sciences",null,"No Response"]
[null,null,null,null,"Hawaii",null,null,null,null,null,"Foreign Languages and Literatures"]
[null,null,null,null,"Iowa",null,null,null,null,null,"Health Professions and Related Clinical Sciences"]
[null,null,null,null,"Idaho",null,null,null,null,null,"History"]
[null,null,null,null,"Illinois",null,null,null,null,null,"Legal Studies"]
[null,null,null,null,"Indiana",null,null,null,null,null,"Liberal Arts and Sciences, General Studies and Humanities"]
[null,null,null,null,"Kansas",null,null,null,null,null,"Library Science/Librarianship"]
[null,null,null,null,"Kentucky",null,null,null,null,null,"Mathematics and Statistics"]
[null,null,null,null,"Louisiana",null,null,null,null,null,"Mechanic and Repair Technologies/Technicians"]
[null,null,null,null,"Massachusetts",null,null,null,null,null,"Military Technologies"]
[null,null,null,null,"Maryland",null,null,null,null,null,"Multi/Interdisciplinary Studies"]
[null,null,null,null,"Maine",null,null,null,null,null,"Natural Resources and Conservation"]
[null,null,null,null,"Michigan",null,null,null,null,null,"Parks, Recreation and Leisure Studies"]
[null,null,null,null,"Minnesota",null,null,null,null,null,"Personal And Culinary Services"]
[null,null,null,null,"Missouri",null,null,null,null,null,"Philosophy and Religious Studies"]
[null,null,null,null,"Northern Mariana Islands",null,null,null,null,null,"Physical Sciences"]
[null,null,null,null,"Mississippi",null,null,null,null,null,"Psychology"]
[null,null,null,null,"Montana",null,null,null,null,null,"Public Administration and Social Service Professions"]
[null,null,null,null,"North Carolina",null,null,null,null,null,"Security and Protective Services"]
[null,null,null,null,"North Dakota",null,null,null,null,null,"Social Sciences"]
[null,null,null,null,"Nebraska",null,null,null,null,null,"Theology and Religious Vocations"]
[null,null,null,null,"New Hampshire",null,null,null,null,null,"Visual and Performing Arts"]
[null,null,null,null,"New Jersey",null,null,null,null,null,"Undecided"]
[null,null,null,null,"New Mexico",null,null,null,null,null,"Other"]
[null,null,null,null,"Nevada",null,null,null,null,null,"No Response"]
[null,null,null,null,"New York","N/A"]
[null,null,null,null,"Ohio"]
[null,null,null,null,"Oklahoma"]
[null,null,null,null,"Oregon"]
[null,null,null,null,"Pennsylvania"]
[null,null,null,null,"Puerto Rico"]
[null,null,null,null,"Rhode Island"]
[null,null,null,null,"South Carolina"]
[null,null,null,null,"South Dakota"]
[null,null,null,null,"Tennessee"]
[null,null,null,null,"Texas"]
[null,null,null,null,"US Minor Outlying Islands"]
[null,null,null,null,"Utah"]
[null,null,null,null,"Virginia"]
[null,null,null,null,"Virgin Islands"]
[null,null,null,null,"Vermont"]
[null,null,null,null,"Washington"]
[null,null,null,null,"Wisconsin"]
[null,null,null,null,"West Virginia"]
[null,null,null,null,"Wyoming"]

{"sheet":"Comm Plan 10","index":13,"n_rows":58,"n_cols":16,"rows_kept":58,"cut":false,"hidden":false,"merged":[]}
["Grad","Select Grad Year ","High Challenge","Select High Challenge","State","Select State","Gender","Select Gender","RaceEthnicity","Select Race/Ethnicity","Academic Area","Select Academic Area","GPA","Select GPA","Score Minimum","Select Score Minimum"]
["2025/2026",null,"Yes",null,"Alaska",null,"Male",null,"Native American or Alaska Native",null,"Agriculture, Agriculture Operations, and Related Sciences",null,"A+ (97-100)",null,900]
["2027/2028",null,null,null,"Alabama",null,"Female",null,"Asian",null,"Architecture and Related Services",null,"A (93-96)",null,1000]
[null,null,null,null,"Arkansas",null,"Another",null,"Black or African American",null,"Area, Ethnic, Cultural, and Gender Studies",null,"A- (90-92)",null,1100]
[null,null,null,null,"American Samoa",null,"No Response",null,"Native Hawaiian or Other Pacific Islander",null,"Biological and Biomedical Sciences",null,"B+ (87-89)",null,1200]
[null,null,null,null,"Arizona",null,null,null,"White",null,"Business, Management, Marketing, and Related Support Services",null,"B (83-86)",null,1300]
[null,null,null,null,"California",null,null,null,"No Response",null,"Communication, Journalism and Related Programs",null,"B- (80-82)",null,1400]
[null,null,null,null,"Colorado",null,null,null,"Hispanic or Latino",null,"Computer and Information Sciences and Support Services",null,"C+ (77-79)",null,1500]
[null,null,null,null,"Connecticut",null,null,null,"Cuban",null,"Construction Trades",null,"C (73-76)"]
[null,null,null,null,"District of Columbia",null,null,null,"Mexican",null,"Education",null,"C- (70-72)"]
[null,null,null,null,"Delaware",null,null,null,"Puerto Rican",null,"Engineering",null,"D+ (67-69)"]
[null,null,null,null,"Florida",null,null,null,"Another Hispanic, Latino, or Spanish Origin",null,"Engineering Technologies/Technicians",null,"D (65-66)"]
[null,null,null,null,"Georgia",null,null,null,null,null,"English Language and Literature/Letters",null,"E/F (Below 65)"]
[null,null,null,null,"Guam",null,null,null,null,null,"Family and Consumer Sciences/Human Sciences",null,"No Response"]
[null,null,null,null,"Hawaii",null,null,null,null,null,"Foreign Languages and Literatures"]
[null,null,null,null,"Iowa",null,null,null,null,null,"Health Professions and Related Clinical Sciences"]
[null,null,null,null,"Idaho",null,null,null,null,null,"History"]
[null,null,null,null,"Illinois",null,null,null,null,null,"Legal Studies"]
[null,null,null,null,"Indiana",null,null,null,null,null,"Liberal Arts and Sciences, General Studies and Humanities"]
[null,null,null,null,"Kansas",null,null,null,null,null,"Library Science/Librarianship"]
[null,null,null,null,"Kentucky",null,null,null,null,null,"Mathematics and Statistics"]
[null,null,null,null,"Louisiana",null,null,null,null,null,"Mechanic and Repair Technologies/Technicians"]
[null,null,null,null,"Massachusetts",null,null,null,null,null,"Military Technologies"]
[null,null,null,null,"Maryland",null,null,null,null,null,"Multi/Interdisciplinary Studies"]
[null,null,null,null,"Maine",null,null,null,null,null,"Natural Resources and Conservation"]
[null,null,null,null,"Michigan",null,null,null,null,null,"Parks, Recreation and Leisure Studies"]
[null,null,null,null,"Minnesota",null,null,null,null,null,"Personal And Culinary Services"]
[null,null,null,null,"Missouri",null,null,null,null,null,"Philosophy and Religious Studies"]
[null,null,null,null,"Northern Mariana Islands",null,null,null,null,null,"Physical Sciences"]
[null,null,null,null,"Mississippi",null,null,null,null,null,"Psychology"]
[null,null,null,null,"Montana",null,null,null,null,null,"Public Administration and Social Service Professions"]
[null,null,null,null,"North Carolina",null,null,null,null,null,"Security and Protective Services"]
[null,null,null,null,"North Dakota",null,null,null,null,null,"Social Sciences"]
[null,null,null,null,"Nebraska",null,null,null,null,null,"Theology and Religious Vocations"]
[null,null,null,null,"New Hampshire",null,null,null,null,null,"Visual and Performing Arts"]
[null,null,null,null,"New Jersey",null,null,null,null,null,"Undecided"]
[null,null,null,null,"New Mexico",null,null,null,null,null,"Other"]
[null,null,null,null,"Nevada",null,null,null,null,null,"No Response"]
[null,null,null,null,"New York","N/A"]
[null,null,null,null,"Ohio"]
[null,null,null,null,"Oklahoma"]
[null,null,null,null,"Oregon"]
[null,null,null,null,"Pennsylvania"]
[null,null,null,null,"Puerto Rico"]
[null,null,null,null,"Rhode Island"]
[null,null,null,null,"South Carolina"]
[null,null,null,null,"South Dakota"]
[null,null,null,null,"Tennessee"]
[null,null,null,null,"Texas"]
[null,null,null,null,"US Minor Outlying Islands"]
[null,null,null,null,"Utah"]
[null,null,null,null,"Virginia"]
[null,null,null,null,"Virgin Islands"]
[null,null,null,null,"Vermont"]
[null,null,null,null,"Washington"]
[null,null,null,null,"Wisconsin"]
[null,null,null,null,"West Virginia"]
[null,null,null,null,"Wyoming"]